Workbook

Sheet Data
A1: Type | B1: District | C1: County | D1: Facility | E1: Wash Water Disposal | F1: Lane Miles | G1: Number of Trucks | H1: 5 Year Average Volume of Salt Brine Made | I1: # Events (2008-2009) | J1: # Events (2009-2010) | K1: # Events (2010-2011) | L1: Three Year Avg Events | M1: Estimated WW Volume
A2: COUNTY | B2: 1 | C2: ALL | D2: Allen County Garage (ALLCG) | E2: Public Sanitary Sewer | F2: 470.04 | G2: 8 | H2: 141132 | I2: 27 | J2: 27 | K2: 35 | L2: =AVERAGE(I2:K2) -> 29.66666667 | M2: =IF(AND(DataSummary!$C$19<>0,DataSummary!$C$19<>"",(ISNUMBER(DataSummary!$C$19)),DataSummary!$C$15<>"",DataSummary!$C$15<>0,(ISNUMBER(DataSummary!$C$15))),1.1*DataSummary!$C$15*Data!G2*((DataSummary!$C$19/100)*Data!L2),1.1*330*Data!G2*Data!L2) -> 86152
A3: COUNTY | B3: 1 | C3: DEF | D3: Defiance County Garage (DEFCG) | E3: Public Sanitary Sewer | F3: 325.6 | G3: 13 | H3: 63349.4 | I3: 23 | J3: 24 | K3: 28 | L3: 25 | M3: =IF(AND(DataSummary!$C$19<>0,DataSummary!$C$19<>"",(ISNUMBER(DataSummary!$C$19)),DataSummary!$C$15<>"",DataSummary!$C$15<>0,(ISNUMBER(DataSummary!$C$15))),1.1*DataSummary!$C$15*Data!G3*((DataSummary!$C$19/100)*Data!L3),1.1*330*Data!G3*Data!L3) -> 117975
A4: COUNTY | B4: 1 | C4: HAN | D4: Hancock County Garage (HANCG) | E4: Public Sanitary Sewer | F4: 577.88 | G4: 15 | H4: 126879 | I4: 29 | J4: 34 | K4: 31 | L4: 31.33333333 | M4: =IF(AND(DataSummary!$C$19<>0,DataSummary!$C$19<>"",(ISNUMBER(DataSummary!$C$19)),DataSummary!$C$15<>"",DataSummary!$C$15<>0,(ISNUMBER(DataSummary!$C$15))),1.1*DataSummary!$C$15*Data!G4*((DataSummary!$C$19/100)*Data!L4),1.1*330*Data!G4*Data!L4) -> 170610
A5: COUNTY | B5: 1 | C5: HAR | D5: Hardin County Garage (HARCG) | E5: Public Sanitary Sewer | F5: 334.46 | G5: 9 | H5: 13898.4 | I5: 26 | J5: 33 | K5: 34 | L5: 31 | M5: =IF(AND(DataSummary!$C$19<>0,DataSummary!$C$19<>"",(ISNUMBER(DataSummary!$C$19)),DataSummary!$C$15<>"",DataSummary!$C$15<>0,(ISNUMBER(DataSummary!$C$15))),1.1*DataSummary!$C$15*Data!G5*((DataSummary!$C$19/100)*Data!L5),1.1*330*Data!G5*Data!L5) -> 101277
A6: COUNTY | B6: 1 | C6: PAU | D6: Paulding County Garage (PAUCG) | E6: Public Sanitary Sewer | F6: 392.64 | G6: 12 | H6: 48100.55 | I6: 22 | J6: 24 | K6: 32 | L6: 26 | M6: =IF(AND(DataSummary!$C$19<>0,DataSummary!$C$19<>"",(ISNUMBER(DataSummary!$C$19)),DataSummary!$C$15<>"",DataSummary!$C$15<>0,(ISNUMBER(DataSummary!$C$15))),1.1*DataSummary!$C$15*Data!G6*((DataSummary!$C$19/100)*Data!L6),1.1*330*Data!G6*Data!L6) -> 113256
A7: COUNTY | B7: 1 | C7: PUT | D7: Putnam County Garage (PUTCG) | E7: Public Sanitary Sewer | F7: 421.82 | G7: 15 | H7: 144928.58 | I7: 19 | J7: 20 | K7: 30 | L7: 23 | M7: =IF(AND(DataSummary!$C$19<>0,DataSummary!$C$19<>"",(ISNUMBER(DataSummary!$C$19)),DataSummary!$C$15<>"",DataSummary!$C$15<>0,(ISNUMBER(DataSummary!$C$15))),1.1*DataSummary!$C$15*Data!G7*((DataSummary!$C$19/100)*Data!L7),1.1*330*Data!G7*Data!L7) -> 125235
A8: COUNTY | B8: 1 | C8: VAN | D8: Van Wert County Garage (VANCG) | E8: Public Sanitary Sewer | F8: 379.664 | G8: 15 | H8: 115553.18 | I8: 25 | J8: 23 | K8: 29 | L8: 25.66666667 | M8: =IF(AND(DataSummary!$C$19<>0,DataSummary!$C$19<>"",(ISNUMBER(DataSummary!$C$19)),DataSummary!$C$15<>"",DataSummary!$C$15<>0,(ISNUMBER(DataSummary!$C$15))),1.1*DataSummary!$C$15*Data!G8*((DataSummary!$C$19/100)*Data!L8),1.1*330*Data!G8*Data!L8) -> 139755
A9: COUNTY | B9: 1 | C9: WYA | D9: Wyandot County Garage (WYACG) | E9: Public Sanitary Sewer | F9: 472.98 | G9: 14 | H9: 420273.44 | I9: 26 | J9: 34 | K9: 34 | L9: 31.33333333 | M9: =IF(AND(DataSummary!$C$19<>0,DataSummary!$C$19<>"",(ISNUMBER(DataSummary!$C$19)),DataSummary!$C$15<>"",DataSummary!$C$15<>0,(ISNUMBER(DataSummary!$C$15))),1.1*DataSummary!$C$15*Data!G9*((DataSummary!$C$19/100)*Data!L9),1.1*330*Data!G9*Data!L9) -> 159236
A10: COUNTY | B10: 2 | C10: FUL | D10: Fulton County Garage (FULCG) | E10: Public Sanitary Sewer | F10: 277.04 | G10: 10 | H10: 37676.6 | I10: 25 | J10: 16 | K10: 19 | L10: 20 | M10: =IF(AND(DataSummary!$C$19<>0,DataSummary!$C$19<>"",(ISNUMBER(DataSummary!$C$19)),DataSummary!$C$15<>"",DataSummary!$C$15<>0,(ISNUMBER(DataSummary!$C$15))),1.1*DataSummary!$C$15*Data!G10*((DataSummary!$C$19/100)*Data!L10),1.1*330*Data!G10*Data!L10) -> 72600
A11: COUNTY | B11: 2 | C11: HEN | D11: Henry County Garage (HENCG) | E11: Lagoon for Brine | F11: 355.01 | G11: 10 | H11: 51849.2 | I11: 26 | J11: 19 | K11: 26 | L11: 23.66666667 | M11: =IF(AND(DataSummary!$C$19<>0,DataSummary!$C$19<>"",(ISNUMBER(DataSummary!$C$19)),DataSummary!$C$15<>"",DataSummary!$C$15<>0,(ISNUMBER(DataSummary!$C$15))),1.1*DataSummary!$C$15*Data!G11*((DataSummary!$C$19/100)*Data!L11),1.1*330*Data!G11*Data!L11) -> 85910
A12: COUNTY | B12: 2 | C12: LUC | D12: Lucas County Garage (LUCCG) | E12: Washing at Fulton County | F12: 420.82 | G12: 16 | H12: 42103.4 | I12: 28 | J12: 25 | K12: 31 | L12: 28 | M12: =IF(AND(DataSummary!$C$19<>0,DataSummary!$C$19<>"",(ISNUMBER(DataSummary!$C$19)),DataSummary!$C$15<>"",DataSummary!$C$15<>0,(ISNUMBER(DataSummary!$C$15))),1.1*DataSummary!$C$15*Data!G12*((DataSummary!$C$19/100)*Data!L12),1.1*330*Data!G12*Data!L12) -> 162624
A13: COUNTY | B13: 2 | C13: OTT | D13: Ottawa County Garage (OTTCG) | E13: Public Sanitary Sewer | F13: 357.51 | G13: 10 | H13: 7399.8 | I13: 30 | J13: 23 | K13: 33 | L13: 28.66666667 | M13: =IF(AND(DataSummary!$C$19<>0,DataSummary!$C$19<>"",(ISNUMBER(DataSummary!$C$19)),DataSummary!$C$15<>"",DataSummary!$C$15<>0,(ISNUMBER(DataSummary!$C$15))),1.1*DataSummary!$C$15*Data!G13*((DataSummary!$C$19/100)*Data!L13),1.1*330*Data!G13*Data!L13) -> 104060
A14: COUNTY | B14: 2 | C14: SAN | D14: Sandusky County Garage (SANCG) | E14: Public Sanitary Sewer | F14: 394.64 | G14: 12 | H14: 63242.8 | I14: 38 | J14: 22 | K14: 30 | L14: 30 | M14: =IF(AND(DataSummary!$C$19<>0,DataSummary!$C$19<>"",(ISNUMBER(DataSummary!$C$19)),DataSummary!$C$15<>"",DataSummary!$C$15<>0,(ISNUMBER(DataSummary!$C$15))),1.1*DataSummary!$C$15*Data!G14*((DataSummary!$C$19/100)*Data!L14),1.1*330*Data!G14*Data!L14) -> 130680
A15: COUNTY | B15: 2 | C15: SEN | D15: Seneca County Garage (SENCG) | E15: Public Sanitary Sewer | F15: 407.44 | G15: 14 | H15: 37618.9 | I15: 30 | J15: 32 | K15: 29 | L15: 30.33333333 | M15: =IF(AND(DataSummary!$C$19<>0,DataSummary!$C$19<>"",(ISNUMBER(DataSummary!$C$19)),DataSummary!$C$15<>"",DataSummary!$C$15<>0,(ISNUMBER(DataSummary!$C$15))),1.1*DataSummary!$C$15*Data!G15*((DataSummary!$C$19/100)*Data!L15),1.1*330*Data!G15*Data!L15) -> 154154
A16: COUNTY | B16: 2 | C16: WIL | D16: Williams County Garage (WILCG) | E16: Public Sanitary Sewer | F16: 373.24 | G16: 14 | H16: 44166.6 | I16: 33 | J16: 23 | K16: 33 | L16: 29.66666667 | M16: =IF(AND(DataSummary!$C$19<>0,DataSummary!$C$19<>"",(ISNUMBER(DataSummary!$C$19)),DataSummary!$C$15<>"",DataSummary!$C$15<>0,(ISNUMBER(DataSummary!$C$15))),1.1*DataSummary!$C$15*Data!G16*((DataSummary!$C$19/100)*Data!L16),1.1*330*Data!G16*Data!L16) -> 150766
A17: COUNTY | B17: 2 | C17: WOO | D17: Wood County Garage (WOOCG) | E17: Public Sanitary Sewer | F17: 750.25 | G17: 21 | H17: 170978.452 | I17: 37 | J17: 37 | K17: 37 | L17: 37 | M17: =IF(AND(DataSummary!$C$19<>0,DataSummary!$C$19<>"",(ISNUMBER(DataSummary!$C$19)),DataSummary!$C$15<>"",DataSummary!$C$15<>0,(ISNUMBER(DataSummary!$C$15))),1.1*DataSummary!$C$15*Data!G17*((DataSummary!$C$19/100)*Data!L17),1.1*330*Data!G17*Data!L17) -> 282051
A18: COUNTY | B18: 3 | C18: ASD | D18: Ashland County Garage (ASDCG) | E18: Public Sanitary Sewer | F18: 601.36 | G18: 16 | H18: 34989.968 | I18: 45 | J18: 41 | K18: 49 | L18: 45 | M18: =IF(AND(DataSummary!$C$19<>0,DataSummary!$C$19<>"",(ISNUMBER(DataSummary!$C$19)),DataSummary!$C$15<>"",DataSummary!$C$15<>0,(ISNUMBER(DataSummary!$C$15))),1.1*DataSummary!$C$15*Data!G18*((DataSummary!$C$19/100)*Data!L18),1.1*330*Data!G18*Data!L18) -> 261360
A19: COUNTY | B19: 3 | C19: CRA | D19: Crawford County Garage (CRACG) | E19: Public Sanitary Sewer | F19: 412.05 | G19: 14 | H19: 88158 | I19: 37 | J19: 37 | K19: 42 | L19: 38.66666667 | M19: =IF(AND(DataSummary!$C$19<>0,DataSummary!$C$19<>"",(ISNUMBER(DataSummary!$C$19)),DataSummary!$C$15<>"",DataSummary!$C$15<>0,(ISNUMBER(DataSummary!$C$15))),1.1*DataSummary!$C$15*Data!G19*((DataSummary!$C$19/100)*Data!L19),1.1*330*Data!G19*Data!L19) -> 196504
A20: COUNTY | B20: 3 | C20: ERI | D20: Erie County Garage (ERICG) | E20: Public Sanitary Sewer | F20: 380.13 | G20: 12 | H20: 29244.66 | I20: 37 | J20: 36 | K20: 39 | L20: 37.33333333 | M20: =IF(AND(DataSummary!$C$19<>0,DataSummary!$C$19<>"",(ISNUMBER(DataSummary!$C$19)),DataSummary!$C$15<>"",DataSummary!$C$15<>0,(ISNUMBER(DataSummary!$C$15))),1.1*DataSummary!$C$15*Data!G20*((DataSummary!$C$19/100)*Data!L20),1.1*330*Data!G20*Data!L20) -> 162624
A21: COUNTY | B21: 3 | C21: HUR | D21: Huron County Garage (HURCG) | E21: Holding Tank | F21: 459.24 | G21: 13 | H21: 26050 | I21: 45 | J21: 39 | K21: 47 | L21: 43.66666667 | M21: =IF(AND(DataSummary!$C$19<>0,DataSummary!$C$19<>"",(ISNUMBER(DataSummary!$C$19)),DataSummary!$C$15<>"",DataSummary!$C$15<>0,(ISNUMBER(DataSummary!$C$15))),1.1*DataSummary!$C$15*Data!G21*((DataSummary!$C$19/100)*Data!L21),1.1*330*Data!G21*Data!L21) -> 206063
A22: COUNTY | B22: 3 | C22: LOR | D22: Lorain County Garage (LORCG) | E22: Public Sanitary Sewer | F22: 536.61 | G22: 12 | H22: 48451.24 | I22: 45 | J22: 41 | K22: 45 | L22: 43.66666667 | M22: =IF(AND(DataSummary!$C$19<>0,DataSummary!$C$19<>"",(ISNUMBER(DataSummary!$C$19)),DataSummary!$C$15<>"",DataSummary!$C$15<>0,(ISNUMBER(DataSummary!$C$15))),1.1*DataSummary!$C$15*Data!G22*((DataSummary!$C$19/100)*Data!L22),1.1*330*Data!G22*Data!L22) -> 190212
A23: COUNTY | B23: 3 | C23: MED | D23: Medina County Garage (MEDCG) | E23: Public Sanitary Sewer | F23: 635.68 | G23: 22 | H23: 50206.2 | I23: 56 | J23: 47 | K23: 59 | L23: 54 | M23: =IF(AND(DataSummary!$C$19<>0,DataSummary!$C$19<>"",(ISNUMBER(DataSummary!$C$19)),DataSummary!$C$15<>"",DataSummary!$C$15<>0,(ISNUMBER(DataSummary!$C$15))),1.1*DataSummary!$C$15*Data!G23*((DataSummary!$C$19/100)*Data!L23),1.1*330*Data!G23*Data!L23) -> 431244
A24: COUNTY | B24: 3 | C24: RIC | D24: Richland County Garage (RICCG) | E24: Public Sanitary Sewer | F24: 618.1 | G24: 12 | H24: 46351.8 | I24: 41 | J24: 44 | K24: 48 | L24: 44.33333333 | M24: =IF(AND(DataSummary!$C$19<>0,DataSummary!$C$19<>"",(ISNUMBER(DataSummary!$C$19)),DataSummary!$C$15<>"",DataSummary!$C$15<>0,(ISNUMBER(DataSummary!$C$15))),1.1*DataSummary!$C$15*Data!G24*((DataSummary!$C$19/100)*Data!L24),1.1*330*Data!G24*Data!L24) -> 193116
A25: COUNTY | B25: 3 | C25: WAY | D25: Wayne County Garage (WAYCG) | E25: Public Sanitary Sewer | F25: 590.66 | G25: 17 | H25: 22732.4 | I25: 34 | J25: 36 | K25: 44 | L25: 38 | M25: =IF(AND(DataSummary!$C$19<>0,DataSummary!$C$19<>"",(ISNUMBER(DataSummary!$C$19)),DataSummary!$C$15<>"",DataSummary!$C$15<>0,(ISNUMBER(DataSummary!$C$15))),1.1*DataSummary!$C$15*Data!G25*((DataSummary!$C$19/100)*Data!L25),1.1*330*Data!G25*Data!L25) -> 234498
A26: COUNTY | B26: 4 | C26: ATB | D26: Ashtabula County Garage (ATBCG) | E26: Public Sanitary Sewer | F26: 840.08 | G26: 9 | H26: 296016.6 | I26: 64 | J26: 56 | K26: 71 | L26: 63.66666667 | M26: =IF(AND(DataSummary!$C$19<>0,DataSummary!$C$19<>"",(ISNUMBER(DataSummary!$C$19)),DataSummary!$C$15<>"",DataSummary!$C$15<>0,(ISNUMBER(DataSummary!$C$15))),1.1*DataSummary!$C$15*Data!G26*((DataSummary!$C$19/100)*Data!L26),1.1*330*Data!G26*Data!L26) -> 207999
A27: COUNTY | B27: 4 | C27: MAH | D27: Mahoning County (Canfield) County Garage (MAHCG) | E27: Public Sanitary Sewer | F27: 645.15 | G27: 9 | H27: 212376.19 | I27: 47 | J27: 45 | K27: 50 | L27: 47.33333333 | M27: =IF(AND(DataSummary!$C$19<>0,DataSummary!$C$19<>"",(ISNUMBER(DataSummary!$C$19)),DataSummary!$C$15<>"",DataSummary!$C$15<>0,(ISNUMBER(DataSummary!$C$15))),1.1*DataSummary!$C$15*Data!G27*((DataSummary!$C$19/100)*Data!L27),1.1*330*Data!G27*Data!L27) -> 154638
A28: COUNTY | B28: 4 | C28: POR | D28: Portage County / Rootstown County Garage (PORCG) | E28: Public Sanitary Sewer | F28: 494.97 | G28: 11 | H28: 254911.9 | I28: 47 | J28: 45 | K28: 51 | L28: 47.66666667 | M28: =IF(AND(DataSummary!$C$19<>0,DataSummary!$C$19<>"",(ISNUMBER(DataSummary!$C$19)),DataSummary!$C$15<>"",DataSummary!$C$15<>0,(ISNUMBER(DataSummary!$C$15))),1.1*DataSummary!$C$15*Data!G28*((DataSummary!$C$19/100)*Data!L28),1.1*330*Data!G28*Data!L28) -> 190333
A29: COUNTY | B29: 4 | C29: STA | D29: Stark County Garage (STACG) | E29: Public Sanitary Sewer | F29: 750.04 | G29: 17 | H29: 456846.8 | I29: 46 | J29: 41 | K29: 47 | L29: 44.66666667 | M29: =IF(AND(DataSummary!$C$19<>0,DataSummary!$C$19<>"",(ISNUMBER(DataSummary!$C$19)),DataSummary!$C$15<>"",DataSummary!$C$15<>0,(ISNUMBER(DataSummary!$C$15))),1.1*DataSummary!$C$15*Data!G29*((DataSummary!$C$19/100)*Data!L29),1.1*330*Data!G29*Data!L29) -> 275638
A30: COUNTY | B30: 4 | C30: SUM | D30: Summit (Boston Heights) County Garage (SUMCG) | E30: Class 5 Well (Septic Tank and Mound System or Leach Field) | F30: 579.84 | G30: 10 | H30: 427736.3 | I30: 57 | J30: 45 | K30: 54 | L30: 52 | M30: =IF(AND(DataSummary!$C$19<>0,DataSummary!$C$19<>"",(ISNUMBER(DataSummary!$C$19)),DataSummary!$C$15<>"",DataSummary!$C$15<>0,(ISNUMBER(DataSummary!$C$15))),1.1*DataSummary!$C$15*Data!G30*((DataSummary!$C$19/100)*Data!L30),1.1*330*Data!G30*Data!L30) -> 188760
A31: COUNTY | B31: 4 | C31: TRU | D31: Trumbull (Cortland) County Garage (TRUCG) | E31: Public Sanitary Sewer | F31: 843.58 | G31: 8 | H31: 144389.2 | I31: 46 | J31: 45 | K31: 55 | L31: 48.66666667 | M31: =IF(AND(DataSummary!$C$19<>0,DataSummary!$C$19<>"",(ISNUMBER(DataSummary!$C$19)),DataSummary!$C$15<>"",DataSummary!$C$15<>0,(ISNUMBER(DataSummary!$C$15))),1.1*DataSummary!$C$15*Data!G31*((DataSummary!$C$19/100)*Data!L31),1.1*330*Data!G31*Data!L31) -> 141328
A32: COUNTY | B32: 5 | C32: COS | D32: Coshocton County Garage (COSCG) | E32: Public Sanitary Sewer | F32: 448.65 | G32: 16 | H32: 75077.4 | I32: 30 | J32: 32 | K32: 33 | L32: 31.66666667 | M32: =IF(AND(DataSummary!$C$19<>0,DataSummary!$C$19<>"",(ISNUMBER(DataSummary!$C$19)),DataSummary!$C$15<>"",DataSummary!$C$15<>0,(ISNUMBER(DataSummary!$C$15))),1.1*DataSummary!$C$15*Data!G32*((DataSummary!$C$19/100)*Data!L32),1.1*330*Data!G32*Data!L32) -> 183920
A33: COUNTY | B33: 5 | C33: FAI | D33: (New) Fairfield Co garage (land) (FAICG) | E33: Public Sanitary Sewer | F33: 414.27 | G33: 15 | H33: 87525.1 | I33: 23 | J33: 31 | K33: 28 | L33: 27.33333333 | M33: =IF(AND(DataSummary!$C$19<>0,DataSummary!$C$19<>"",(ISNUMBER(DataSummary!$C$19)),DataSummary!$C$15<>"",DataSummary!$C$15<>0,(ISNUMBER(DataSummary!$C$15))),1.1*DataSummary!$C$15*Data!G33*((DataSummary!$C$19/100)*Data!L33),1.1*330*Data!G33*Data!L33) -> 148830
A34: COUNTY | B34: 5 | C34: GUE | D34: Guernsey County Garage (GUECG) | E34: Public Sanitary Sewer | F34: 622.15 | G34: 12 | H34: 157530.562 | I34: 30 | J34: 34 | K34: 36 | L34: =AVERAGE(I34:K34) -> 33.33333333 | M34: =IF(AND(DataSummary!$C$19<>0,DataSummary!$C$19<>"",(ISNUMBER(DataSummary!$C$19)),DataSummary!$C$15<>"",DataSummary!$C$15<>0,(ISNUMBER(DataSummary!$C$15))),1.1*DataSummary!$C$15*Data!G34*((DataSummary!$C$19/100)*Data!L34),1.1*330*Data!G34*Data!L34) -> 145200
A35: COUNTY | B35: 5 | C35: KNO | D35: Knox County Garage (KNOCG) | E35: Public Sanitary Sewer | F35: 382.57 | G35: 13 | H35: 84096.9 | I35: 29 | J35: 32 | K35: 38 | L35: 33 | M35: =IF(AND(DataSummary!$C$19<>0,DataSummary!$C$19<>"",(ISNUMBER(DataSummary!$C$19)),DataSummary!$C$15<>"",DataSummary!$C$15<>0,(ISNUMBER(DataSummary!$C$15))),1.1*DataSummary!$C$15*Data!G35*((DataSummary!$C$19/100)*Data!L35),1.1*330*Data!G35*Data!L35) -> 155727
A36: COUNTY | B36: 5 | C36: LIC | D36: Utica Oupost Yard (LICPNW) | E36: Class 5 Well (Septic Tank and Mound System or Leach Field) | F36: 693.28 | G36: 6 | H36: 106706.8 | I36: 31 | J36: 38 | K36: 35 | L36: 34.66666667 | M36: =IF(AND(DataSummary!$C$19<>0,DataSummary!$C$19<>"",(ISNUMBER(DataSummary!$C$19)),DataSummary!$C$15<>"",DataSummary!$C$15<>0,(ISNUMBER(DataSummary!$C$15))),1.1*DataSummary!$C$15*Data!G36*((DataSummary!$C$19/100)*Data!L36),1.1*330*Data!G36*Data!L36) -> 75504
A37: COUNTY | B37: 5 | C37: MUS | D37: Muskingum County Garage (MUSCG) | E37: Class 5 Well (Septic Tank and Mound System or Leach Field) | F37: 694.44 | G37: 11 | H37: 68750.6 | I37: 32 | J37: 37 | K37: 37 | L37: 35.33333333 | M37: =IF(AND(DataSummary!$C$19<>0,DataSummary!$C$19<>"",(ISNUMBER(DataSummary!$C$19)),DataSummary!$C$15<>"",DataSummary!$C$15<>0,(ISNUMBER(DataSummary!$C$15))),1.1*DataSummary!$C$15*Data!G37*((DataSummary!$C$19/100)*Data!L37),1.1*330*Data!G37*Data!L37) -> 141086
A38: COUNTY | B38: 5 | C38: PER | D38: Perry County Garage (PERCG) | E38: Public Sanitary Sewer | F38: 363.52 | G38: 15 | H38: 78313.9 | I38: 20 | J38: 30 | K38: 26 | L38: 25.33333333 | M38: =IF(AND(DataSummary!$C$19<>0,DataSummary!$C$19<>"",(ISNUMBER(DataSummary!$C$19)),DataSummary!$C$15<>"",DataSummary!$C$15<>0,(ISNUMBER(DataSummary!$C$15))),1.1*DataSummary!$C$15*Data!G38*((DataSummary!$C$19/100)*Data!L38),1.1*330*Data!G38*Data!L38) -> 137940
A39: COUNTY | B39: 6 | C39: DEL | D39: Delaware County Garage (DELCG) | E39: Public Sanitary Sewer | F39: 556.57 | G39: 11 | H39: 141060.6 | I39: 28 | J39: 35 | K39: 34 | L39: 32.33333333 | M39: =IF(AND(DataSummary!$C$19<>0,DataSummary!$C$19<>"",(ISNUMBER(DataSummary!$C$19)),DataSummary!$C$15<>"",DataSummary!$C$15<>0,(ISNUMBER(DataSummary!$C$15))),1.1*DataSummary!$C$15*Data!G39*((DataSummary!$C$19/100)*Data!L39),1.1*330*Data!G39*Data!L39) -> 129107
A40: COUNTY | B40: 6 | C40: FAY | D40: Fayette County Garage (FAYCG) | E40: Holding Tank | F40: 465.01 | G40: 7 | H40: 52385.7 | I40: 29 | J40: 32 | K40: 38 | L40: 33 | M40: =IF(AND(DataSummary!$C$19<>0,DataSummary!$C$19<>"",(ISNUMBER(DataSummary!$C$19)),DataSummary!$C$15<>"",DataSummary!$C$15<>0,(ISNUMBER(DataSummary!$C$15))),1.1*DataSummary!$C$15*Data!G40*((DataSummary!$C$19/100)*Data!L40),1.1*330*Data!G40*Data!L40) -> 83853
A41: COUNTY | B41: 6 | C41: FRA | D41: Franklin County Garage (FRACG) | E41: Holding Tank | F41: 1456.1 | G41: 13 | H41: 121682.3 | I41: 30 | J41: 41 | K41: 32 | L41: 34.33333333 | M41: =IF(AND(DataSummary!$C$19<>0,DataSummary!$C$19<>"",(ISNUMBER(DataSummary!$C$19)),DataSummary!$C$15<>"",DataSummary!$C$15<>0,(ISNUMBER(DataSummary!$C$15))),1.1*DataSummary!$C$15*Data!G41*((DataSummary!$C$19/100)*Data!L41),1.1*330*Data!G41*Data!L41) -> 162019
A42: COUNTY | B42: 6 | C42: MAD | D42: Madison County Garage (MADCG) | E42: Package Plant | F42: 613.01 | G42: 8 | H42: 27142.3 | I42: 29 | J42: 36 | K42: 40 | L42: 35 | M42: =IF(AND(DataSummary!$C$19<>0,DataSummary!$C$19<>"",(ISNUMBER(DataSummary!$C$19)),DataSummary!$C$15<>"",DataSummary!$C$15<>0,(ISNUMBER(DataSummary!$C$15))),1.1*DataSummary!$C$15*Data!G42*((DataSummary!$C$19/100)*Data!L42),1.1*330*Data!G42*Data!L42) -> 101640
A43: COUNTY | B43: 6 | C43: MAR | D43: Marion County Garage (MARCG) | E43: Public Sanitary Sewer | F43: 422.6 | G43: 14 | H43: 86546.96 | I43: 29 | J43: 32 | K43: 38 | L43: 33 | M43: =IF(AND(DataSummary!$C$19<>0,DataSummary!$C$19<>"",(ISNUMBER(DataSummary!$C$19)),DataSummary!$C$15<>"",DataSummary!$C$15<>0,(ISNUMBER(DataSummary!$C$15))),1.1*DataSummary!$C$15*Data!G43*((DataSummary!$C$19/100)*Data!L43),1.1*330*Data!G43*Data!L43) -> 167706
A44: COUNTY | B44: 6 | C44: MRW | D44: Morrow County Garage (MRWCG) | E44: Holding Tank | F44: 408.54 | G44: 10 | H44: 63493.4 | I44: 37 | J44: 41 | K44: 46 | L44: 41.33333333 | M44: =IF(AND(DataSummary!$C$19<>0,DataSummary!$C$19<>"",(ISNUMBER(DataSummary!$C$19)),DataSummary!$C$15<>"",DataSummary!$C$15<>0,(ISNUMBER(DataSummary!$C$15))),1.1*DataSummary!$C$15*Data!G44*((DataSummary!$C$19/100)*Data!L44),1.1*330*Data!G44*Data!L44) -> 150040
A45: COUNTY | B45: 6 | C45: PIC | D45: Pickaway County Garage (PICCG) | E45: holding tank/ oil water seperator | F45: 415.8 | G45: 15 | H45: 30724.38 | I45: 18 | J45: 25 | K45: 21 | L45: 21.33333333 | M45: =IF(AND(DataSummary!$C$19<>0,DataSummary!$C$19<>"",(ISNUMBER(DataSummary!$C$19)),DataSummary!$C$15<>"",DataSummary!$C$15<>0,(ISNUMBER(DataSummary!$C$15))),1.1*DataSummary!$C$15*Data!G45*((DataSummary!$C$19/100)*Data!L45),1.1*330*Data!G45*Data!L45) -> 116160
A46: COUNTY | B46: 6 | C46: UNI | D46: Union County Garage (UNICG) | E46: Public Sanitary Sewer | F46: 459.14 | G46: 10 | H46: 97577.8 | I46: 25 | J46: 36 | K46: 38 | L46: 33 | M46: =IF(AND(DataSummary!$C$19<>0,DataSummary!$C$19<>"",(ISNUMBER(DataSummary!$C$19)),DataSummary!$C$15<>"",DataSummary!$C$15<>0,(ISNUMBER(DataSummary!$C$15))),1.1*DataSummary!$C$15*Data!G46*((DataSummary!$C$19/100)*Data!L46),1.1*330*Data!G46*Data!L46) -> 119790
A47: COUNTY | B47: 7 | C47: AUG | D47: Auglaize County Garage (AUGCG) | E47: Public Sanitary Sewer | F47: 466.07 | G47: 17 | H47: 32561.4 | I47: 26 | J47: 30 | K47: 30 | L47: 28.66666667 | M47: =IF(AND(DataSummary!$C$19<>0,DataSummary!$C$19<>"",(ISNUMBER(DataSummary!$C$19)),DataSummary!$C$15<>"",DataSummary!$C$15<>0,(ISNUMBER(DataSummary!$C$15))),1.1*DataSummary!$C$15*Data!G47*((DataSummary!$C$19/100)*Data!L47),1.1*330*Data!G47*Data!L47) -> 176902
A48: COUNTY | B48: 7 | C48: CHP | D48: Champaign County Garage (CHPCG) | E48: Public Sanitary Sewer | F48: 407.53 | G48: 10 | H48: 51547.6 | I48: 26 | J48: 29 | K48: 37 | L48: 30.66666667 | M48: =IF(AND(DataSummary!$C$19<>0,DataSummary!$C$19<>"",(ISNUMBER(DataSummary!$C$19)),DataSummary!$C$15<>"",DataSummary!$C$15<>0,(ISNUMBER(DataSummary!$C$15))),1.1*DataSummary!$C$15*Data!G48*((DataSummary!$C$19/100)*Data!L48),1.1*330*Data!G48*Data!L48) -> 111320
A49: COUNTY | B49: 7 | C49: CLA | D49: Clark County Garage (CLACG) | E49: Public Sanitary Sewer | F49: 493.82 | G49: 9 | H49: 96340.08 | I49: 30 | J49: 35 | K49: 35 | L49: 33.33333333 | M49: =IF(AND(DataSummary!$C$19<>0,DataSummary!$C$19<>"",(ISNUMBER(DataSummary!$C$19)),DataSummary!$C$15<>"",DataSummary!$C$15<>0,(ISNUMBER(DataSummary!$C$15))),1.1*DataSummary!$C$15*Data!G49*((DataSummary!$C$19/100)*Data!L49),1.1*330*Data!G49*Data!L49) -> 108900
A50: COUNTY | B50: 7 | C50: DAR | D50: Darke County Garage (DARCG) | E50: Public Sanitary Sewer | F50: 536.47 | G50: 14 | H50: 51950 | I50: 31 | J50: 28 | K50: 34 | L50: 31 | M50: =IF(AND(DataSummary!$C$19<>0,DataSummary!$C$19<>"",(ISNUMBER(DataSummary!$C$19)),DataSummary!$C$15<>"",DataSummary!$C$15<>0,(ISNUMBER(DataSummary!$C$15))),1.1*DataSummary!$C$15*Data!G50*((DataSummary!$C$19/100)*Data!L50),1.1*330*Data!G50*Data!L50) -> 157542
A51: COUNTY | B51: 7 | C51: LOG | D51: Logan County Garage (LOGCG) | E51: Public Sanitary Sewer | F51: 496.93 | G51: 10 | H51: 31114.402 | I51: 32 | J51: 31 | K51: 38 | L51: 33.66666667 | M51: =IF(AND(DataSummary!$C$19<>0,DataSummary!$C$19<>"",(ISNUMBER(DataSummary!$C$19)),DataSummary!$C$15<>"",DataSummary!$C$15<>0,(ISNUMBER(DataSummary!$C$15))),1.1*DataSummary!$C$15*Data!G51*((DataSummary!$C$19/100)*Data!L51),1.1*330*Data!G51*Data!L51) -> 122210
A52: COUNTY | B52: 7 | C52: MER | D52: Mercer County Garage (MERCG) | E52: Public Sanitary Sewer | F52: 416.88 | G52: 10 | H52: 27680.2 | I52: 23 | J52: 22 | K52: 30 | L52: 25 | M52: =IF(AND(DataSummary!$C$19<>0,DataSummary!$C$19<>"",(ISNUMBER(DataSummary!$C$19)),DataSummary!$C$15<>"",DataSummary!$C$15<>0,(ISNUMBER(DataSummary!$C$15))),1.1*DataSummary!$C$15*Data!G52*((DataSummary!$C$19/100)*Data!L52),1.1*330*Data!G52*Data!L52) -> 90750
A53: COUNTY | B53: 7 | C53: MIA | D53: Miami County Garage (MIACG) | E53: Public Sanitary Sewer | F53: 430.78 | G53: 12 | H53: 49070.75 | I53: 26 | J53: 30 | K53: 34 | L53: 30 | M53: =IF(AND(DataSummary!$C$19<>0,DataSummary!$C$19<>"",(ISNUMBER(DataSummary!$C$19)),DataSummary!$C$15<>"",DataSummary!$C$15<>0,(ISNUMBER(DataSummary!$C$15))),1.1*DataSummary!$C$15*Data!G53*((DataSummary!$C$19/100)*Data!L53),1.1*330*Data!G53*Data!L53) -> 130680
A54: COUNTY | B54: 7 | C54: MOT | D54: Montgomery County Garage (MOTCG) | E54: Public Sanitary Sewer | F54: 534.51 | G54: 11 | H54: 113209.55 | I54: 18 | J54: 20 | K54: 19 | L54: 19 | M54: =IF(AND(DataSummary!$C$19<>0,DataSummary!$C$19<>"",(ISNUMBER(DataSummary!$C$19)),DataSummary!$C$15<>"",DataSummary!$C$15<>0,(ISNUMBER(DataSummary!$C$15))),1.1*DataSummary!$C$15*Data!G54*((DataSummary!$C$19/100)*Data!L54),1.1*330*Data!G54*Data!L54) -> 75867
A55: COUNTY | B55: 7 | C55: SHE | D55: Shelby County Garage (SHECG) | E55: Public Sanitary Sewer | F55: 362.5 | G55: 14 | H55: 15907.6 | I55: 29 | J55: 30 | K55: 31 | L55: 30 | M55: =IF(AND(DataSummary!$C$19<>0,DataSummary!$C$19<>"",(ISNUMBER(DataSummary!$C$19)),DataSummary!$C$15<>"",DataSummary!$C$15<>0,(ISNUMBER(DataSummary!$C$15))),1.1*DataSummary!$C$15*Data!G55*((DataSummary!$C$19/100)*Data!L55),1.1*330*Data!G55*Data!L55) -> 152460
A56: COUNTY | B56: 8 | C56: BUT | D56: Butler County Garage (BUTCG) | E56: Public Sanitary Sewer | F56: 410.99 | G56: 15 | H56: 37146 | I56: 25 | J56: 29 | K56: 29 | L56: 27.66666667 | M56: =IF(AND(DataSummary!$C$19<>0,DataSummary!$C$19<>"",(ISNUMBER(DataSummary!$C$19)),DataSummary!$C$15<>"",DataSummary!$C$15<>0,(ISNUMBER(DataSummary!$C$15))),1.1*DataSummary!$C$15*Data!G56*((DataSummary!$C$19/100)*Data!L56),1.1*330*Data!G56*Data!L56) -> 150645
A57: COUNTY | B57: 8 | C57: CLE | D57: Clermont County Garage (CLECG) | E57: Public Sanitary Sewer | F57: 758.29 | G57: 12 | H57: 34113 | I57: 21 | J57: 21 | K57: 25 | L57: 22.33333333 | M57: =IF(AND(DataSummary!$C$19<>0,DataSummary!$C$19<>"",(ISNUMBER(DataSummary!$C$19)),DataSummary!$C$15<>"",DataSummary!$C$15<>0,(ISNUMBER(DataSummary!$C$15))),1.1*DataSummary!$C$15*Data!G57*((DataSummary!$C$19/100)*Data!L57),1.1*330*Data!G57*Data!L57) -> 97284
A58: COUNTY | B58: 8 | C58: CLI | D58: Clinton County Garage (CLICG) | E58: Public Sanitary Sewer | F58: 509.95 | G58: 12 | H58: 22863 | I58: 29 | J58: 32 | K58: 37 | L58: 32.66666667 | M58: =IF(AND(DataSummary!$C$19<>0,DataSummary!$C$19<>"",(ISNUMBER(DataSummary!$C$19)),DataSummary!$C$15<>"",DataSummary!$C$15<>0,(ISNUMBER(DataSummary!$C$15))),1.1*DataSummary!$C$15*Data!G58*((DataSummary!$C$19/100)*Data!L58),1.1*330*Data!G58*Data!L58) -> 142296
A59: COUNTY | B59: 8 | C59: GRE | D59: Greene County Garage (GRECG) | E59: Public Sanitary Sewer | F59: 447.29 | G59: 14 | H59: 19236 | I59: 29 | J59: 34 | K59: 36 | L59: 33 | M59: =IF(AND(DataSummary!$C$19<>0,DataSummary!$C$19<>"",(ISNUMBER(DataSummary!$C$19)),DataSummary!$C$15<>"",DataSummary!$C$15<>0,(ISNUMBER(DataSummary!$C$15))),1.1*DataSummary!$C$15*Data!G59*((DataSummary!$C$19/100)*Data!L59),1.1*330*Data!G59*Data!L59) -> 167706
A60: COUNTY | B60: 8 | C60: HAM | D60: Hamilton County Garage (new) (HAMCG) | E60: Public Sanitary Sewer | F60: 940.82 | G60: 18 | H60: 43305.8 | I60: 23 | J60: 22 | K60: 27 | L60: 24 | M60: =IF(AND(DataSummary!$C$19<>0,DataSummary!$C$19<>"",(ISNUMBER(DataSummary!$C$19)),DataSummary!$C$15<>"",DataSummary!$C$15<>0,(ISNUMBER(DataSummary!$C$15))),1.1*DataSummary!$C$15*Data!G60*((DataSummary!$C$19/100)*Data!L60),1.1*330*Data!G60*Data!L60) -> 156816
A61: COUNTY | B61: 8 | C61: PRE | D61: Preble County Garage (PRECG) | E61: Aeration System | F61: 411.11 | H61: 18025.05 | I61: 29 | J61: 33 | K61: 41 | L61: 34.33333333 | M61: =IF(AND(DataSummary!$C$19<>0,DataSummary!$C$19<>"",(ISNUMBER(DataSummary!$C$19)),DataSummary!$C$15<>"",DataSummary!$C$15<>0,(ISNUMBER(DataSummary!$C$15))),1.1*DataSummary!$C$15*Data!G61*((DataSummary!$C$19/100)*Data!L61),1.1*330*Data!G61*Data!L61) -> 0
A62: COUNTY | B62: 8 | C62: WAR | D62: Warren County Garage (WARCG) | E62: Public Sanitary Sewer | F62: 559.58 | G62: 14 | H62: 14686.6 | I62: 24 | J62: 29 | K62: 30 | L62: 27.66666667 | M62: =IF(AND(DataSummary!$C$19<>0,DataSummary!$C$19<>"",(ISNUMBER(DataSummary!$C$19)),DataSummary!$C$15<>"",DataSummary!$C$15<>0,(ISNUMBER(DataSummary!$C$15))),1.1*DataSummary!$C$15*Data!G62*((DataSummary!$C$19/100)*Data!L62),1.1*330*Data!G62*Data!L62) -> 140602
A63: COUNTY | B63: 9 | C63: ADA | D63: Adams County GarageI (ADACG) | E63: The county will begin hookup to a sanitary sewer June 6 | F63: 488.1 | G63: 10 | H63: 7466.2 | I63: 16 | J63: 18 | K63: 20 | L63: 18 | M63: =IF(AND(DataSummary!$C$19<>0,DataSummary!$C$19<>"",(ISNUMBER(DataSummary!$C$19)),DataSummary!$C$15<>"",DataSummary!$C$15<>0,(ISNUMBER(DataSummary!$C$15))),1.1*DataSummary!$C$15*Data!G63*((DataSummary!$C$19/100)*Data!L63),1.1*330*Data!G63*Data!L63) -> 65340
A64: COUNTY | B64: 9 | C64: BRO | D64: Brown County Garage (BROCG) | E64: Public Sanitary Sewer | F64: 474.91 | G64: 10 | H64: 3982 | I64: 16 | J64: 17 | K64: 22 | L64: 18.33333333 | M64: =IF(AND(DataSummary!$C$19<>0,DataSummary!$C$19<>"",(ISNUMBER(DataSummary!$C$19)),DataSummary!$C$15<>"",DataSummary!$C$15<>0,(ISNUMBER(DataSummary!$C$15))),1.1*DataSummary!$C$15*Data!G64*((DataSummary!$C$19/100)*Data!L64),1.1*330*Data!G64*Data!L64) -> 66550
A65: COUNTY | B65: 9 | C65: HIG | D65: Highland County Garage (HIGCG) | E65: Public Sanitary Sewer | F65: 495.56 | G65: 15 | I65: 20 | J65: 20 | K65: 25 | L65: 21.66666667 | M65: =IF(AND(DataSummary!$C$19<>0,DataSummary!$C$19<>"",(ISNUMBER(DataSummary!$C$19)),DataSummary!$C$15<>"",DataSummary!$C$15<>0,(ISNUMBER(DataSummary!$C$15))),1.1*DataSummary!$C$15*Data!G65*((DataSummary!$C$19/100)*Data!L65),1.1*330*Data!G65*Data!L65) -> 117975
A66: COUNTY | B66: 9 | C66: JAC | D66: Jackson County Garage (JACCG) | E66: Package Plant | F66: 450.5 | G66: 14 | H66: 5925 | I66: 15 | J66: 22 | K66: 19 | L66: =AVERAGE(I66:K66) -> 18.66666667 | M66: =IF(AND(DataSummary!$C$19<>0,DataSummary!$C$19<>"",(ISNUMBER(DataSummary!$C$19)),DataSummary!$C$15<>"",DataSummary!$C$15<>0,(ISNUMBER(DataSummary!$C$15))),1.1*DataSummary!$C$15*Data!G66*((DataSummary!$C$19/100)*Data!L66),1.1*330*Data!G66*Data!L66) -> 94864
A67: COUNTY | B67: 9 | C67: LAW | D67: LAWRENCE CO GARAGE (LAWCG) | E67: Public Sanitary Sewer | F67: 409.89 | G67: 7 | H67: 4552 | I67: 11 | J67: 15 | K67: 15 | L67: 13.66666667 | M67: =IF(AND(DataSummary!$C$19<>0,DataSummary!$C$19<>"",(ISNUMBER(DataSummary!$C$19)),DataSummary!$C$15<>"",DataSummary!$C$15<>0,(ISNUMBER(DataSummary!$C$15))),1.1*DataSummary!$C$15*Data!G67*((DataSummary!$C$19/100)*Data!L67),1.1*330*Data!G67*Data!L67) -> 34727
A68: COUNTY | B68: 9 | C68: PIK | D68: Pike County Garage (PIKCG) | E68: Public Sanitary Sewer | F68: 360.78 | G68: 12 | H68: 1280 | I68: 8 | J68: 15 | K68: 16 | L68: 13 | M68: =IF(AND(DataSummary!$C$19<>0,DataSummary!$C$19<>"",(ISNUMBER(DataSummary!$C$19)),DataSummary!$C$15<>"",DataSummary!$C$15<>0,(ISNUMBER(DataSummary!$C$15))),1.1*DataSummary!$C$15*Data!G68*((DataSummary!$C$19/100)*Data!L68),1.1*330*Data!G68*Data!L68) -> 56628
A69: COUNTY | B69: 9 | C69: ROS | D69: Ross County Garage (ROSCG) | E69: Public Sanitary Sewer | F69: 552.85 | G69: 18 | H69: 10605.6 | I69: 17 | J69: 25 | K69: 19 | L69: 20.33333333 | M69: =IF(AND(DataSummary!$C$19<>0,DataSummary!$C$19<>"",(ISNUMBER(DataSummary!$C$19)),DataSummary!$C$15<>"",DataSummary!$C$15<>0,(ISNUMBER(DataSummary!$C$15))),1.1*DataSummary!$C$15*Data!G69*((DataSummary!$C$19/100)*Data!L69),1.1*330*Data!G69*Data!L69) -> 132858
A70: COUNTY | B70: 9 | C70: SCI | D70: Scioto County Garage (SCICG) | E70: Public Sanitary Sewer | F70: 444.96 | G70: 9 | H70: 5684 | I70: 10 | J70: 15 | K70: 14 | L70: 13 | M70: =IF(AND(DataSummary!$C$19<>0,DataSummary!$C$19<>"",(ISNUMBER(DataSummary!$C$19)),DataSummary!$C$15<>"",DataSummary!$C$15<>0,(ISNUMBER(DataSummary!$C$15))),1.1*DataSummary!$C$15*Data!G70*((DataSummary!$C$19/100)*Data!L70),1.1*330*Data!G70*Data!L70) -> 42471
A71: COUNTY | B71: 10 | C71: ATH | D71: Athens County Garage (ATHCG) | E71: Public Sanitary Sewer | F71: 515.2 | G71: 12 | H71: 105152.2 | I71: 17 | J71: 25 | K71: 21 | L71: 21 | M71: =IF(AND(DataSummary!$C$19<>0,DataSummary!$C$19<>"",(ISNUMBER(DataSummary!$C$19)),DataSummary!$C$15<>"",DataSummary!$C$15<>0,(ISNUMBER(DataSummary!$C$15))),1.1*DataSummary!$C$15*Data!G71*((DataSummary!$C$19/100)*Data!L71),1.1*330*Data!G71*Data!L71) -> 91476
A72: COUNTY | B72: 10 | C72: GAL | D72: Gallia County Garage (GALCG) | E72: Public Sanitary Sewer | F72: 448.08 | G72: 13 | H72: 16147 | I72: 11 | J72: 19 | K72: 17 | L72: 15.66666667 | M72: =IF(AND(DataSummary!$C$19<>0,DataSummary!$C$19<>"",(ISNUMBER(DataSummary!$C$19)),DataSummary!$C$15<>"",DataSummary!$C$15<>0,(ISNUMBER(DataSummary!$C$15))),1.1*DataSummary!$C$15*Data!G72*((DataSummary!$C$19/100)*Data!L72),1.1*330*Data!G72*Data!L72) -> 73931
A73: COUNTY | B73: 10 | C73: HOC | D73: Hocking County Garage (HOCCG) | E73: Public Sanitary Sewer | F73: 367.82 | G73: 13 | H73: 53664 | I73: 22 | J73: 26 | K73: 19 | L73: 22.33333333 | M73: =IF(AND(DataSummary!$C$19<>0,DataSummary!$C$19<>"",(ISNUMBER(DataSummary!$C$19)),DataSummary!$C$15<>"",DataSummary!$C$15<>0,(ISNUMBER(DataSummary!$C$15))),1.1*DataSummary!$C$15*Data!G73*((DataSummary!$C$19/100)*Data!L73),1.1*330*Data!G73*Data!L73) -> 105391
A74: COUNTY | B74: 10 | C74: MEG | D74: Meigs County Garage (MEGCG) | E74: Holding Tank | F74: 423.58 | G74: 15 | H74: 53918.8 | I74: 11 | J74: 20 | K74: 17 | L74: 16 | M74: =IF(AND(DataSummary!$C$19<>0,DataSummary!$C$19<>"",(ISNUMBER(DataSummary!$C$19)),DataSummary!$C$15<>"",DataSummary!$C$15<>0,(ISNUMBER(DataSummary!$C$15))),1.1*DataSummary!$C$15*Data!G74*((DataSummary!$C$19/100)*Data!L74),1.1*330*Data!G74*Data!L74) -> 87120
A75: COUNTY | B75: 10 | C75: MOE | D75: Monroe County Garage (MOECG) | E75: Public Sanitary Sewer | F75: 434.11 | G75: 12 | H75: 24247.8 | I75: 25 | J75: 27 | K75: 27 | L75: 26.33333333 | M75: =IF(AND(DataSummary!$C$19<>0,DataSummary!$C$19<>"",(ISNUMBER(DataSummary!$C$19)),DataSummary!$C$15<>"",DataSummary!$C$15<>0,(ISNUMBER(DataSummary!$C$15))),1.1*DataSummary!$C$15*Data!G75*((DataSummary!$C$19/100)*Data!L75),1.1*330*Data!G75*Data!L75) -> 114708
A76: COUNTY | B76: 10 | C76: MRG | D76: Morgan County Garage (MRGCG) | E76: Holding Tank | F76: 384.15 | G76: 12 | H76: 66936 | I76: 23 | J76: 23 | K76: 25 | L76: 23.66666667 | M76: =IF(AND(DataSummary!$C$19<>0,DataSummary!$C$19<>"",(ISNUMBER(DataSummary!$C$19)),DataSummary!$C$15<>"",DataSummary!$C$15<>0,(ISNUMBER(DataSummary!$C$15))),1.1*DataSummary!$C$15*Data!G76*((DataSummary!$C$19/100)*Data!L76),1.1*330*Data!G76*Data!L76) -> 103092
A77: COUNTY | B77: 10 | C77: NOB | D77: Noble County County Garage (NOBCG) | E77: Public Sanitary Sewer | F77: 474.02 | G77: 15 | H77: 31097 | I77: 21 | J77: 29 | K77: 24 | L77: 24.66666667 | M77: =IF(AND(DataSummary!$C$19<>0,DataSummary!$C$19<>"",(ISNUMBER(DataSummary!$C$19)),DataSummary!$C$15<>"",DataSummary!$C$15<>0,(ISNUMBER(DataSummary!$C$15))),1.1*DataSummary!$C$15*Data!G77*((DataSummary!$C$19/100)*Data!L77),1.1*330*Data!G77*Data!L77) -> 134310
A78: COUNTY | B78: 10 | C78: VIN | D78: Vinton County Garage (VINCG) | E78: Holding Tank | F78: 337.57 | G78: 10 | H78: 16824 | I78: 16 | J78: 25 | K78: 22 | L78: 21 | M78: =IF(AND(DataSummary!$C$19<>0,DataSummary!$C$19<>"",(ISNUMBER(DataSummary!$C$19)),DataSummary!$C$15<>"",DataSummary!$C$15<>0,(ISNUMBER(DataSummary!$C$15))),1.1*DataSummary!$C$15*Data!G78*((DataSummary!$C$19/100)*Data!L78),1.1*330*Data!G78*Data!L78) -> 76230
A79: COUNTY | B79: 10 | C79: WAS | D79: Washington County Garage (WASCG) | E79: Public Sanitary Sewer | F79: 605.68 | G79: 24 | H79: 50049 | I79: 23 | J79: 26 | K79: 24 | L79: 24.33333333 | M79: =IF(AND(DataSummary!$C$19<>0,DataSummary!$C$19<>"",(ISNUMBER(DataSummary!$C$19)),DataSummary!$C$15<>"",DataSummary!$C$15<>0,(ISNUMBER(DataSummary!$C$15))),1.1*DataSummary!$C$15*Data!G79*((DataSummary!$C$19/100)*Data!L79),1.1*330*Data!G79*Data!L79) -> 211992
A80: COUNTY | B80: 11 | C80: BEL | D80: Belmont County Garage (BELCG) | E80: Public Sanitary Sewer | F80: 690.24 | G80: 12 | H80: 52723.9 | I80: 34 | J80: 39 | K80: 35 | L80: 36 | M80: =IF(AND(DataSummary!$C$19<>0,DataSummary!$C$19<>"",(ISNUMBER(DataSummary!$C$19)),DataSummary!$C$15<>"",DataSummary!$C$15<>0,(ISNUMBER(DataSummary!$C$15))),1.1*DataSummary!$C$15*Data!G80*((DataSummary!$C$19/100)*Data!L80),1.1*330*Data!G80*Data!L80) -> 156816
A81: COUNTY | B81: 11 | C81: CAR | D81: Carroll County Garage (CARCG) | E81: Public Sanitary Sewer | F81: 305.09 | G81: 13 | H81: 20607.4 | I81: 30 | J81: 34 | K81: 36 | L81: 33.33333333 | M81: =IF(AND(DataSummary!$C$19<>0,DataSummary!$C$19<>"",(ISNUMBER(DataSummary!$C$19)),DataSummary!$C$15<>"",DataSummary!$C$15<>0,(ISNUMBER(DataSummary!$C$15))),1.1*DataSummary!$C$15*Data!G81*((DataSummary!$C$19/100)*Data!L81),1.1*330*Data!G81*Data!L81) -> 157300
A82: COUNTY | B82: 11 | C82: COL | D82: Columbiana County Garage (COLCG) | E82: Class 5 Well (Septic Tank and Mound System or Leach Field) | F82: 653.87 | G82: 14 | H82: 33686.8 | I82: 37 | J82: 38 | K82: 47 | L82: 40.66666667 | M82: =IF(AND(DataSummary!$C$19<>0,DataSummary!$C$19<>"",(ISNUMBER(DataSummary!$C$19)),DataSummary!$C$15<>"",DataSummary!$C$15<>0,(ISNUMBER(DataSummary!$C$15))),1.1*DataSummary!$C$15*Data!G82*((DataSummary!$C$19/100)*Data!L82),1.1*330*Data!G82*Data!L82) -> 206668
A83: COUNTY | B83: 11 | C83: HAS | D83: Harrison County Garage (HASCG) | E83: Public Sanitary Sewer | F83: 349.59 | G83: 8 | H83: 2639 | I83: 34 | J83: 37 | K83: 40 | L83: 37 | M83: =IF(AND(DataSummary!$C$19<>0,DataSummary!$C$19<>"",(ISNUMBER(DataSummary!$C$19)),DataSummary!$C$15<>"",DataSummary!$C$15<>0,(ISNUMBER(DataSummary!$C$15))),1.1*DataSummary!$C$15*Data!G83*((DataSummary!$C$19/100)*Data!L83),1.1*330*Data!G83*Data!L83) -> 107448
A84: COUNTY | B84: 11 | C84: HOL | D84: Holmes County Garage (HOLCG) | E84: Public Sanitary Sewer | F84: 350.52 | G84: 10 | I84: 27 | J84: 31 | K84: 33 | L84: 30.33333333 | M84: =IF(AND(DataSummary!$C$19<>0,DataSummary!$C$19<>"",(ISNUMBER(DataSummary!$C$19)),DataSummary!$C$15<>"",DataSummary!$C$15<>0,(ISNUMBER(DataSummary!$C$15))),1.1*DataSummary!$C$15*Data!G84*((DataSummary!$C$19/100)*Data!L84),1.1*330*Data!G84*Data!L84) -> 110110
A85: COUNTY | B85: 11 | C85: JEF | D85: Jefferson County Garage (JEFCG) | E85: Public Sanitary Sewer | F85: 457.24 | G85: 12 | H85: 39285 | I85: 36 | J85: 40 | K85: 39 | L85: 38.33333333 | M85: =IF(AND(DataSummary!$C$19<>0,DataSummary!$C$19<>"",(ISNUMBER(DataSummary!$C$19)),DataSummary!$C$15<>"",DataSummary!$C$15<>0,(ISNUMBER(DataSummary!$C$15))),1.1*DataSummary!$C$15*Data!G85*((DataSummary!$C$19/100)*Data!L85),1.1*330*Data!G85*Data!L85) -> 166980
A86: COUNTY | B86: 11 | C86: TUS | D86: Tuscarawas County Garage (TUSCG) | E86: Class 5 Well (Septic Tank and Mound System or Leach Field) | F86: 521.64 | G86: 11 | H86: 48040.564 | I86: 31 | J86: 38 | K86: 34 | L86: 34.33333333 | M86: =IF(AND(DataSummary!$C$19<>0,DataSummary!$C$19<>"",(ISNUMBER(DataSummary!$C$19)),DataSummary!$C$15<>"",DataSummary!$C$15<>0,(ISNUMBER(DataSummary!$C$15))),1.1*DataSummary!$C$15*Data!G86*((DataSummary!$C$19/100)*Data!L86),1.1*330*Data!G86*Data!L86) -> 137093
A87: COUNTY | B87: 12 | C87: GEA | D87: Geauga County Garage (GEACG) | E87: Runoff / Storm Sewer | F87: 412.51 | G87: 8 | H87: 208667.4 | I87: 54 | J87: 51 | K87: 79 | L87: 61.33333333 | M87: =IF(AND(DataSummary!$C$19<>0,DataSummary!$C$19<>"",(ISNUMBER(DataSummary!$C$19)),DataSummary!$C$15<>"",DataSummary!$C$15<>0,(ISNUMBER(DataSummary!$C$15))),1.1*DataSummary!$C$15*Data!G87*((DataSummary!$C$19/100)*Data!L87),1.1*330*Data!G87*Data!L87) -> 178112
A88: COUNTY | B88: 12 | C88: LAK | D88: Lake County Garage (New) (LAKCG) | E88: Public Sanitary Sewer | F88: 364.76 | H88: 7502 | I88: 59 | J88: 53 | K88: 70 | L88: 60.66666667 | M88: =IF(AND(DataSummary!$C$19<>0,DataSummary!$C$19<>"",(ISNUMBER(DataSummary!$C$19)),DataSummary!$C$15<>"",DataSummary!$C$15<>0,(ISNUMBER(DataSummary!$C$15))),1.1*DataSummary!$C$15*Data!G88*((DataSummary!$C$19/100)*Data!L88),1.1*330*Data!G88*Data!L88) -> 0
A89: DISTRICT | B89: 1 | C89: ALL | D89: District 1 HQ (New) (ALLHQ) | E89: 0 | I89: 27 | J89: 27 | K89: 35 | L89: 29.66666667 | M89: =IF(AND(DataSummary!$C$19<>0,DataSummary!$C$19<>"",(ISNUMBER(DataSummary!$C$19)),DataSummary!$C$15<>"",DataSummary!$C$15<>0,(ISNUMBER(DataSummary!$C$15))),1.1*DataSummary!$C$15*Data!G89*((DataSummary!$C$19/100)*Data!L89),1.1*330*Data!G89*Data!L89) -> 0
A90: DISTRICT | B90: 2 | C90: WOO | D90: District 2 HQ Office (WOOHQ) | E90: 0 | I90: 37 | J90: 37 | K90: 37 | L90: 37 | M90: =IF(AND(DataSummary!$C$19<>0,DataSummary!$C$19<>"",(ISNUMBER(DataSummary!$C$19)),DataSummary!$C$15<>"",DataSummary!$C$15<>0,(ISNUMBER(DataSummary!$C$15))),1.1*DataSummary!$C$15*Data!G90*((DataSummary!$C$19/100)*Data!L90),1.1*330*Data!G90*Data!L90) -> 0
A91: DISTRICT | B91: 3 | C91: ASD | D91: District 3 HQ Office (New) (ASDHQ) | E91: Public Sanitary Sewer | I91: 45 | J91: 41 | K91: 49 | L91: 45 | M91: =IF(AND(DataSummary!$C$19<>0,DataSummary!$C$19<>"",(ISNUMBER(DataSummary!$C$19)),DataSummary!$C$15<>"",DataSummary!$C$15<>0,(ISNUMBER(DataSummary!$C$15))),1.1*DataSummary!$C$15*Data!G91*((DataSummary!$C$19/100)*Data!L91),1.1*330*Data!G91*Data!L91) -> 0
A92: DISTRICT | B92: 4 | C92: SUM | D92: District Four Headquarters (SUMHQ) | E92: Public Sanitary Sewer | I92: 57 | J92: 45 | K92: 54 | L92: 52 | M92: =IF(AND(DataSummary!$C$19<>0,DataSummary!$C$19<>"",(ISNUMBER(DataSummary!$C$19)),DataSummary!$C$15<>"",DataSummary!$C$15<>0,(ISNUMBER(DataSummary!$C$15))),1.1*DataSummary!$C$15*Data!G92*((DataSummary!$C$19/100)*Data!L92),1.1*330*Data!G92*Data!L92) -> 0
A93: DISTRICT | B93: 5 | C93: LIC | D93: District 5 HQ Office & Garage (LICHQ) | E93: Package Plant | I93: 31 | J93: 38 | K93: 35 | L93: 34.66666667 | M93: =IF(AND(DataSummary!$C$19<>0,DataSummary!$C$19<>"",(ISNUMBER(DataSummary!$C$19)),DataSummary!$C$15<>"",DataSummary!$C$15<>0,(ISNUMBER(DataSummary!$C$15))),1.1*DataSummary!$C$15*Data!G93*((DataSummary!$C$19/100)*Data!L93),1.1*330*Data!G93*Data!L93) -> 0
A94: DISTRICT | B94: 6 | C94: DEL | D94: Dist. 6 HQ Office(renov'd. 1992) (DELHQ) | E94: Holding Tank | I94: 28 | J94: 35 | K94: 34 | L94: 32.33333333 | M94: =IF(AND(DataSummary!$C$19<>0,DataSummary!$C$19<>"",(ISNUMBER(DataSummary!$C$19)),DataSummary!$C$15<>"",DataSummary!$C$15<>0,(ISNUMBER(DataSummary!$C$15))),1.1*DataSummary!$C$15*Data!G94*((DataSummary!$C$19/100)*Data!L94),1.1*330*Data!G94*Data!L94) -> 0
A95: DISTRICT | B95: 7 | C95: SHE | D95: District 7 HQ Office (SHEHQ) | E95: Public Sanitary Sewer | I95: 29 | J95: 30 | K95: 31 | L95: 30 | M95: =IF(AND(DataSummary!$C$19<>0,DataSummary!$C$19<>"",(ISNUMBER(DataSummary!$C$19)),DataSummary!$C$15<>"",DataSummary!$C$15<>0,(ISNUMBER(DataSummary!$C$15))),1.1*DataSummary!$C$15*Data!G95*((DataSummary!$C$19/100)*Data!L95),1.1*330*Data!G95*Data!L95) -> 0
A96: DISTRICT | B96: 8 | C96: WAR | D96: District 8 HQ Office (WARHQ) | E96: Public Sanitary Sewer | I96: 24 | J96: 29 | K96: 30 | L96: 27.66666667 | M96: =IF(AND(DataSummary!$C$19<>0,DataSummary!$C$19<>"",(ISNUMBER(DataSummary!$C$19)),DataSummary!$C$15<>"",DataSummary!$C$15<>0,(ISNUMBER(DataSummary!$C$15))),1.1*DataSummary!$C$15*Data!G96*((DataSummary!$C$19/100)*Data!L96),1.1*330*Data!G96*Data!L96) -> 0
A97: DISTRICT | B97: 9 | C97: ROS | D97: District 9 HQ Office (ROSHQ) | E97: Public Sanitary Sewer | I97: 17 | J97: 25 | K97: 19 | L97: 20.33333333 | M97: =IF(AND(DataSummary!$C$19<>0,DataSummary!$C$19<>"",(ISNUMBER(DataSummary!$C$19)),DataSummary!$C$15<>"",DataSummary!$C$15<>0,(ISNUMBER(DataSummary!$C$15))),1.1*DataSummary!$C$15*Data!G97*((DataSummary!$C$19/100)*Data!L97),1.1*330*Data!G97*Data!L97) -> 0
A98: DISTRICT | B98: 10 | C98: WAS | D98: District 10 HQ Garage (WASDG) | E98: Public Sanitary Sewer | I98: 23 | J98: 26 | K98: 24 | L98: =AVERAGE(I98:K98) -> 24.33333333 | M98: =IF(AND(DataSummary!$C$19<>0,DataSummary!$C$19<>"",(ISNUMBER(DataSummary!$C$19)),DataSummary!$C$15<>"",DataSummary!$C$15<>0,(ISNUMBER(DataSummary!$C$15))),1.1*DataSummary!$C$15*Data!G98*((DataSummary!$C$19/100)*Data!L98),1.1*330*Data!G98*Data!L98) -> 0
A99: DISTRICT | B99: 10 | C99: WAS | D99: District 10 HQ Office (WASHQ) | E99: 0 | H99: 38212.304 | I99: 23 | J99: 26 | K99: 24 | L99: 24.33333333 | M99: =IF(AND(DataSummary!$C$19<>0,DataSummary!$C$19<>"",(ISNUMBER(DataSummary!$C$19)),DataSummary!$C$15<>"",DataSummary!$C$15<>0,(ISNUMBER(DataSummary!$C$15))),1.1*DataSummary!$C$15*Data!G99*((DataSummary!$C$19/100)*Data!L99),1.1*330*Data!G99*Data!L99) -> 0
A100: DISTRICT | B100: 11 | C100: TUS | D100: District 11 HQ Office (New) (TUSHQ) | E100: Public Sanitary Sewer | I100: 31 | J100: 38 | K100: 34 | M100: =IF(AND(DataSummary!$C$19<>0,DataSummary!$C$19<>"",(ISNUMBER(DataSummary!$C$19)),DataSummary!$C$15<>"",DataSummary!$C$15<>0,(ISNUMBER(DataSummary!$C$15))),1.1*DataSummary!$C$15*Data!G100*((DataSummary!$C$19/100)*Data!L100),1.1*330*Data!G100*Data!L100) -> 0
A101: DISTRICT | B101: 12 | C101: CUY | D101: District 12 HQ Office (CUYHQ) | E101: Public Sanitary Sewer | F101: 1030.56 | I101: 65 | J101: 54 | K101: 77 | M101: =IF(AND(DataSummary!$C$19<>0,DataSummary!$C$19<>"",(ISNUMBER(DataSummary!$C$19)),DataSummary!$C$15<>"",DataSummary!$C$15<>0,(ISNUMBER(DataSummary!$C$15))),1.1*DataSummary!$C$15*Data!G101*((DataSummary!$C$19/100)*Data!L101),1.1*330*Data!G101*Data!L101) -> 0
A102: OUTPOST | B102: 1 | C102: ALL | D102: Beaverdam Outpost Garage (ALLPNE) | E102: Public Sanitary Sewer | G102: 4 | I102: 27 | J102: 27 | K102: 35 | L102: =AVERAGE(I102:K102) -> 29.66666667 | M102: =IF(AND(DataSummary!$C$19<>0,DataSummary!$C$19<>"",(ISNUMBER(DataSummary!$C$19)),DataSummary!$C$15<>"",DataSummary!$C$15<>0,(ISNUMBER(DataSummary!$C$15))),1.1*DataSummary!$C$15*Data!G102*((DataSummary!$C$19/100)*Data!L102),1.1*330*Data!G102*Data!L102) -> 43076
A103: OUTPOST | B103: 1 | C103: ALL | D103: Delphos Outpost Garage (ALLPNW) | E103: Public Sanitary Sewer | G103: 3 | I103: 27 | J103: 27 | K103: 35 | L103: 29.66666667 | M103: =IF(AND(DataSummary!$C$19<>0,DataSummary!$C$19<>"",(ISNUMBER(DataSummary!$C$19)),DataSummary!$C$15<>"",DataSummary!$C$15<>0,(ISNUMBER(DataSummary!$C$15))),1.1*DataSummary!$C$15*Data!G103*((DataSummary!$C$19/100)*Data!L103),1.1*330*Data!G103*Data!L103) -> 32307
A104: OUTPOST | B104: 1 | C104: ALL | D104: Lima / 4th St. Outpost Garage (ALLPCT) | E104: Public Sanitary Sewer | G104: 4 | I104: 27 | J104: 27 | K104: 35 | L104: 29.66666667 | M104: =IF(AND(DataSummary!$C$19<>0,DataSummary!$C$19<>"",(ISNUMBER(DataSummary!$C$19)),DataSummary!$C$15<>"",DataSummary!$C$15<>0,(ISNUMBER(DataSummary!$C$15))),1.1*DataSummary!$C$15*Data!G104*((DataSummary!$C$19/100)*Data!L104),1.1*330*Data!G104*Data!L104) -> 43076
A105: OUTPOST | B105: 1 | C105: DEF | D105: Hicksville Outpost Garage (DEFPSW) | E105: Public Sanitary Sewer | G105: 1 | I105: 23 | J105: 24 | K105: 28 | L105: 25 | M105: =IF(AND(DataSummary!$C$19<>0,DataSummary!$C$19<>"",(ISNUMBER(DataSummary!$C$19)),DataSummary!$C$15<>"",DataSummary!$C$15<>0,(ISNUMBER(DataSummary!$C$15))),1.1*DataSummary!$C$15*Data!G105*((DataSummary!$C$19/100)*Data!L105),1.1*330*Data!G105*Data!L105) -> 9075
A106: OUTPOST | B106: 1 | C106: HAN | D106: Findlay Outpost Garage (HANPCT) | E106: Public Sanitary Sewer | G106: 12 | I106: 29 | J106: 34 | K106: 31 | L106: 31.33333333 | M106: =IF(AND(DataSummary!$C$19<>0,DataSummary!$C$19<>"",(ISNUMBER(DataSummary!$C$19)),DataSummary!$C$15<>"",DataSummary!$C$15<>0,(ISNUMBER(DataSummary!$C$15))),1.1*DataSummary!$C$15*Data!G106*((DataSummary!$C$19/100)*Data!L106),1.1*330*Data!G106*Data!L106) -> 136488
A107: OUTPOST | B107: 1 | C107: HAR | D107: Roundhead Outpost Garage (HARPSW) | E107: 0 | G107: 2 | I107: 26 | J107: 33 | K107: 34 | L107: 31 | M107: =IF(AND(DataSummary!$C$19<>0,DataSummary!$C$19<>"",(ISNUMBER(DataSummary!$C$19)),DataSummary!$C$15<>"",DataSummary!$C$15<>0,(ISNUMBER(DataSummary!$C$15))),1.1*DataSummary!$C$15*Data!G107*((DataSummary!$C$19/100)*Data!L107),1.1*330*Data!G107*Data!L107) -> 22506
A108: OUTPOST | B108: 1 | C108: PAU | D108: Paulding County Outpost (PAUPNO) | E108: 0 | I108: 22 | J108: 24 | K108: 32 | L108: 26 | M108: =IF(AND(DataSummary!$C$19<>0,DataSummary!$C$19<>"",(ISNUMBER(DataSummary!$C$19)),DataSummary!$C$15<>"",DataSummary!$C$15<>0,(ISNUMBER(DataSummary!$C$15))),1.1*DataSummary!$C$15*Data!G108*((DataSummary!$C$19/100)*Data!L108),1.1*330*Data!G108*Data!L108) -> 0
A109: OUTPOST | B109: 1 | C109: WYA | D109: Carey Outpost Garage (WYAPNW) | E109: Class 5 Well (Septic Tank and Mound System or Leach Field) | G109: 2 | I109: 26 | J109: 34 | K109: 34 | L109: 31.33333333 | M109: =IF(AND(DataSummary!$C$19<>0,DataSummary!$C$19<>"",(ISNUMBER(DataSummary!$C$19)),DataSummary!$C$15<>"",DataSummary!$C$15<>0,(ISNUMBER(DataSummary!$C$15))),1.1*DataSummary!$C$15*Data!G109*((DataSummary!$C$19/100)*Data!L109),1.1*330*Data!G109*Data!L109) -> 22748
A110: OUTPOST | B110: 2 | C110: OTT | D110: Edison Bridge Outpost Garage (OTTPEA) | E110: 0 | G110: 4 | I110: 30 | J110: 23 | K110: 33 | L110: 28.66666667 | M110: =IF(AND(DataSummary!$C$19<>0,DataSummary!$C$19<>"",(ISNUMBER(DataSummary!$C$19)),DataSummary!$C$15<>"",DataSummary!$C$15<>0,(ISNUMBER(DataSummary!$C$15))),1.1*DataSummary!$C$15*Data!G110*((DataSummary!$C$19/100)*Data!L110),1.1*330*Data!G110*Data!L110) -> 41624
A111: OUTPOST | B111: 2 | C111: WOO | D111: Northwood Outpost Garage (WOOPNE) | E111: Public Sanitary Sewer | G111: 16 | I111: 37 | J111: 37 | K111: 37 | L111: 37 | M111: =IF(AND(DataSummary!$C$19<>0,DataSummary!$C$19<>"",(ISNUMBER(DataSummary!$C$19)),DataSummary!$C$15<>"",DataSummary!$C$15<>0,(ISNUMBER(DataSummary!$C$15))),1.1*DataSummary!$C$15*Data!G111*((DataSummary!$C$19/100)*Data!L111),1.1*330*Data!G111*Data!L111) -> 214896
A112: OUTPOST | B112: 3 | C112: ASD | D112: Nova Outpost (ASDPNW) | E112: 0 | I112: 45 | J112: 41 | K112: 49 | L112: =AVERAGE(I112:K112) -> 45 | M112: =IF(AND(DataSummary!$C$19<>0,DataSummary!$C$19<>"",(ISNUMBER(DataSummary!$C$19)),DataSummary!$C$15<>"",DataSummary!$C$15<>0,(ISNUMBER(DataSummary!$C$15))),1.1*DataSummary!$C$15*Data!G112*((DataSummary!$C$19/100)*Data!L112),1.1*330*Data!G112*Data!L112) -> 0
A113: OUTPOST | B113: 3 | C113: ASD | D113: Perrysville Outpost Garage (ASDPSO) | E113: Runoff / Storm Sewer | G113: 4 | I113: 45 | J113: 41 | K113: 49 | L113: 45 | M113: =IF(AND(DataSummary!$C$19<>0,DataSummary!$C$19<>"",(ISNUMBER(DataSummary!$C$19)),DataSummary!$C$15<>"",DataSummary!$C$15<>0,(ISNUMBER(DataSummary!$C$15))),1.1*DataSummary!$C$15*Data!G113*((DataSummary!$C$19/100)*Data!L113),1.1*330*Data!G113*Data!L113) -> 65340
A114: OUTPOST | B114: 3 | C114: ERI | D114: Vermillion Outpost Garage (ERIPNE) | E114: Class 5 Well (Septic Tank and Mound System or Leach Field) | G114: 2 | I114: 37 | J114: 36 | K114: 39 | L114: 37.33333333 | M114: =IF(AND(DataSummary!$C$19<>0,DataSummary!$C$19<>"",(ISNUMBER(DataSummary!$C$19)),DataSummary!$C$15<>"",DataSummary!$C$15<>0,(ISNUMBER(DataSummary!$C$15))),1.1*DataSummary!$C$15*Data!G114*((DataSummary!$C$19/100)*Data!L114),1.1*330*Data!G114*Data!L114) -> 27104
A115: OUTPOST | B115: 3 | C115: HUR | D115: Plymouth Outpost Garage (HURPSE) | E115: Runoff / Storm Sewer | G115: 2 | I115: 45 | J115: 39 | K115: 47 | L115: 43.66666667 | M115: =IF(AND(DataSummary!$C$19<>0,DataSummary!$C$19<>"",(ISNUMBER(DataSummary!$C$19)),DataSummary!$C$15<>"",DataSummary!$C$15<>0,(ISNUMBER(DataSummary!$C$15))),1.1*DataSummary!$C$15*Data!G115*((DataSummary!$C$19/100)*Data!L115),1.1*330*Data!G115*Data!L115) -> 31702
A116: OUTPOST | B116: 3 | C116: LOR | D116: Avon Outpost Garage (LORPNE) | E116: Public Sanitary Sewer | G116: 6 | I116: 45 | J116: 41 | K116: 45 | L116: 43.66666667 | M116: =IF(AND(DataSummary!$C$19<>0,DataSummary!$C$19<>"",(ISNUMBER(DataSummary!$C$19)),DataSummary!$C$15<>"",DataSummary!$C$15<>0,(ISNUMBER(DataSummary!$C$15))),1.1*DataSummary!$C$15*Data!G116*((DataSummary!$C$19/100)*Data!L116),1.1*330*Data!G116*Data!L116) -> 95106
A117: OUTPOST | B117: 3 | C117: MED | D117: Burbank Outpost Garage (MEDPSW) | E117: Runoff / Storm Sewer | G117: 7 | I117: 56 | J117: 47 | K117: 59 | L117: 54 | M117: =IF(AND(DataSummary!$C$19<>0,DataSummary!$C$19<>"",(ISNUMBER(DataSummary!$C$19)),DataSummary!$C$15<>"",DataSummary!$C$15<>0,(ISNUMBER(DataSummary!$C$15))),1.1*DataSummary!$C$15*Data!G117*((DataSummary!$C$19/100)*Data!L117),1.1*330*Data!G117*Data!L117) -> 137214
A118: OUTPOST | B118: 3 | C118: RIC | D118: Lexington Outpost Garage (RICPSW) | E118: Runoff / Storm Sewer | G118: 8 | I118: 41 | J118: 44 | K118: 48 | L118: 44.33333333 | M118: =IF(AND(DataSummary!$C$19<>0,DataSummary!$C$19<>"",(ISNUMBER(DataSummary!$C$19)),DataSummary!$C$15<>"",DataSummary!$C$15<>0,(ISNUMBER(DataSummary!$C$15))),1.1*DataSummary!$C$15*Data!G118*((DataSummary!$C$19/100)*Data!L118),1.1*330*Data!G118*Data!L118) -> 128744
A119: OUTPOST | B119: 4 | C119: ATB | D119: Conneaut Outpost Garage (ATBPNE) | E119: Package Plant | G119: 5 | I119: 64 | J119: 56 | K119: 71 | L119: 63.66666667 | M119: =IF(AND(DataSummary!$C$19<>0,DataSummary!$C$19<>"",(ISNUMBER(DataSummary!$C$19)),DataSummary!$C$15<>"",DataSummary!$C$15<>0,(ISNUMBER(DataSummary!$C$15))),1.1*DataSummary!$C$15*Data!G119*((DataSummary!$C$19/100)*Data!L119),1.1*330*Data!G119*Data!L119) -> 115555
A120: OUTPOST | B120: 4 | C120: ATB | D120: Dorset Outpost Garage (ATBPCT) | E120: Holding Tank | G120: 4 | I120: 64 | J120: 56 | K120: 71 | L120: 63.66666667 | M120: =IF(AND(DataSummary!$C$19<>0,DataSummary!$C$19<>"",(ISNUMBER(DataSummary!$C$19)),DataSummary!$C$15<>"",DataSummary!$C$15<>0,(ISNUMBER(DataSummary!$C$15))),1.1*DataSummary!$C$15*Data!G120*((DataSummary!$C$19/100)*Data!L120),1.1*330*Data!G120*Data!L120) -> 92444
A121: OUTPOST | B121: 4 | C121: ATB | D121: Harperfield Outpost Garage (ATBPNW) | E121: 0 | G121: 3 | I121: 64 | J121: 56 | K121: 71 | L121: 63.66666667 | M121: =IF(AND(DataSummary!$C$19<>0,DataSummary!$C$19<>"",(ISNUMBER(DataSummary!$C$19)),DataSummary!$C$15<>"",DataSummary!$C$15<>0,(ISNUMBER(DataSummary!$C$15))),1.1*DataSummary!$C$15*Data!G121*((DataSummary!$C$19/100)*Data!L121),1.1*330*Data!G121*Data!L121) -> 69333
A122: OUTPOST | B122: 4 | C122: ATB | D122: Rome Outpost Garage (ATBPSW) | E122: Holding Tank | G122: 4 | I122: 64 | J122: 56 | K122: 71 | L122: 63.66666667 | M122: =IF(AND(DataSummary!$C$19<>0,DataSummary!$C$19<>"",(ISNUMBER(DataSummary!$C$19)),DataSummary!$C$15<>"",DataSummary!$C$15<>0,(ISNUMBER(DataSummary!$C$15))),1.1*DataSummary!$C$15*Data!G122*((DataSummary!$C$19/100)*Data!L122),1.1*330*Data!G122*Data!L122) -> 92444
A123: OUTPOST | B123: 4 | C123: ATB | D123: Williamsfield Outpost Garage (ATBPSE) | E123: Class 5 Well (Septic Tank and Mound System or Leach Field) | G123: 4 | I123: 64 | J123: 56 | K123: 71 | L123: 63.66666667 | M123: =IF(AND(DataSummary!$C$19<>0,DataSummary!$C$19<>"",(ISNUMBER(DataSummary!$C$19)),DataSummary!$C$15<>"",DataSummary!$C$15<>0,(ISNUMBER(DataSummary!$C$15))),1.1*DataSummary!$C$15*Data!G123*((DataSummary!$C$19/100)*Data!L123),1.1*330*Data!G123*Data!L123) -> 92444
A124: OUTPOST | B124: 4 | C124: MAH | D124: Bailey Road Outpost Garage (MAHPNW) | E124: Public Sanitary Sewer | G124: 4 | I124: 47 | J124: 45 | K124: 50 | L124: 47.33333333 | M124: =IF(AND(DataSummary!$C$19<>0,DataSummary!$C$19<>"",(ISNUMBER(DataSummary!$C$19)),DataSummary!$C$15<>"",DataSummary!$C$15<>0,(ISNUMBER(DataSummary!$C$15))),1.1*DataSummary!$C$15*Data!G124*((DataSummary!$C$19/100)*Data!L124),1.1*330*Data!G124*Data!L124) -> 68728
A125: OUTPOST | B125: 4 | C125: MAH | D125: N. Lima Outpost (MAHPSE) | E125: Class 5 Well (Septic Tank and Mound System or Leach Field) | G125: 8 | I125: 47 | J125: 45 | K125: 50 | L125: 47.33333333 | M125: =IF(AND(DataSummary!$C$19<>0,DataSummary!$C$19<>"",(ISNUMBER(DataSummary!$C$19)),DataSummary!$C$15<>"",DataSummary!$C$15<>0,(ISNUMBER(DataSummary!$C$15))),1.1*DataSummary!$C$15*Data!G125*((DataSummary!$C$19/100)*Data!L125),1.1*330*Data!G125*Data!L125) -> 137456
A126: OUTPOST | B126: 4 | C126: MAH | D126: Sebring Outpost Garage (MAHPWE) | E126: Class 5 Well (Septic Tank and Mound System or Leach Field) | G126: 2 | I126: 47 | J126: 45 | K126: 50 | L126: 47.33333333 | M126: =IF(AND(DataSummary!$C$19<>0,DataSummary!$C$19<>"",(ISNUMBER(DataSummary!$C$19)),DataSummary!$C$15<>"",DataSummary!$C$15<>0,(ISNUMBER(DataSummary!$C$15))),1.1*DataSummary!$C$15*Data!G126*((DataSummary!$C$19/100)*Data!L126),1.1*330*Data!G126*Data!L126) -> 34364
A127: OUTPOST | B127: 4 | C127: MAH | D127: South Avenue Outpost Yard (MAHPNE) | E127: 0 | I127: 47 | J127: 45 | K127: 50 | L127: 47.33333333 | M127: =IF(AND(DataSummary!$C$19<>0,DataSummary!$C$19<>"",(ISNUMBER(DataSummary!$C$19)),DataSummary!$C$15<>"",DataSummary!$C$15<>0,(ISNUMBER(DataSummary!$C$15))),1.1*DataSummary!$C$15*Data!G127*((DataSummary!$C$19/100)*Data!L127),1.1*330*Data!G127*Data!L127) -> 0
A128: OUTPOST | B128: 4 | C128: POR | D128: Drakesburg Outpost Garage (PORPNE) | E128: Holding Tank | G128: 5 | I128: 47 | J128: 45 | K128: 51 | L128: 47.66666667 | M128: =IF(AND(DataSummary!$C$19<>0,DataSummary!$C$19<>"",(ISNUMBER(DataSummary!$C$19)),DataSummary!$C$15<>"",DataSummary!$C$15<>0,(ISNUMBER(DataSummary!$C$15))),1.1*DataSummary!$C$15*Data!G128*((DataSummary!$C$19/100)*Data!L128),1.1*330*Data!G128*Data!L128) -> 86515
A129: OUTPOST | B129: 4 | C129: POR | D129: Yale Outpost Garage (PORPSE) | E129: Class 5 Well (Septic Tank and Mound System or Leach Field) | G129: 4 | I129: 47 | J129: 45 | K129: 51 | L129: 47.66666667 | M129: =IF(AND(DataSummary!$C$19<>0,DataSummary!$C$19<>"",(ISNUMBER(DataSummary!$C$19)),DataSummary!$C$15<>"",DataSummary!$C$15<>0,(ISNUMBER(DataSummary!$C$15))),1.1*DataSummary!$C$15*Data!G129*((DataSummary!$C$19/100)*Data!L129),1.1*330*Data!G129*Data!L129) -> 69212
A130: OUTPOST | B130: 4 | C130: STA | D130: Alliance Outpost Yard (STAPNE) | E130: 0 | I130: 46 | J130: 41 | K130: 47 | L130: 44.66666667 | M130: =IF(AND(DataSummary!$C$19<>0,DataSummary!$C$19<>"",(ISNUMBER(DataSummary!$C$19)),DataSummary!$C$15<>"",DataSummary!$C$15<>0,(ISNUMBER(DataSummary!$C$15))),1.1*DataSummary!$C$15*Data!G130*((DataSummary!$C$19/100)*Data!L130),1.1*330*Data!G130*Data!L130) -> 0
A131: OUTPOST | B131: 4 | C131: STA | D131: Canal Fulton Outpost Yard (STAPNW) | E131: 0 | I131: 46 | J131: 41 | K131: 47 | L131: 44.66666667 | M131: =IF(AND(DataSummary!$C$19<>0,DataSummary!$C$19<>"",(ISNUMBER(DataSummary!$C$19)),DataSummary!$C$15<>"",DataSummary!$C$15<>0,(ISNUMBER(DataSummary!$C$15))),1.1*DataSummary!$C$15*Data!G131*((DataSummary!$C$19/100)*Data!L131),1.1*330*Data!G131*Data!L131) -> 0
A132: OUTPOST | B132: 4 | C132: STA | D132: Millersburg Rd. Outpost Yard (STAPWE) | E132: 0 | I132: 46 | J132: 41 | K132: 47 | L132: 44.66666667 | M132: =IF(AND(DataSummary!$C$19<>0,DataSummary!$C$19<>"",(ISNUMBER(DataSummary!$C$19)),DataSummary!$C$15<>"",DataSummary!$C$15<>0,(ISNUMBER(DataSummary!$C$15))),1.1*DataSummary!$C$15*Data!G132*((DataSummary!$C$19/100)*Data!L132),1.1*330*Data!G132*Data!L132) -> 0
A133: OUTPOST | B133: 4 | C133: SUM | D133: Greensburg Airport Outpost Garage (SUMPSE) | E133: Runoff / Storm Sewer | G133: 4 | I133: 57 | J133: 45 | K133: 54 | L133: 52 | M133: =IF(AND(DataSummary!$C$19<>0,DataSummary!$C$19<>"",(ISNUMBER(DataSummary!$C$19)),DataSummary!$C$15<>"",DataSummary!$C$15<>0,(ISNUMBER(DataSummary!$C$15))),1.1*DataSummary!$C$15*Data!G133*((DataSummary!$C$19/100)*Data!L133),1.1*330*Data!G133*Data!L133) -> 75504
A134: OUTPOST | B134: 4 | C134: SUM | D134: Interchange / Norton Outpost Garage (SUMPWE) | E134: Package Plant | G134: 7 | I134: 57 | J134: 45 | K134: 54 | L134: 52 | M134: =IF(AND(DataSummary!$C$19<>0,DataSummary!$C$19<>"",(ISNUMBER(DataSummary!$C$19)),DataSummary!$C$15<>"",DataSummary!$C$15<>0,(ISNUMBER(DataSummary!$C$15))),1.1*DataSummary!$C$15*Data!G134*((DataSummary!$C$19/100)*Data!L134),1.1*330*Data!G134*Data!L134) -> 132132
A135: OUTPOST | B135: 4 | C135: SUM | D135: Kelly Avenue Outpost Garage (SUMPEA) | E135: Public Sanitary Sewer | I135: 57 | J135: 45 | K135: 54 | L135: 52 | M135: =IF(AND(DataSummary!$C$19<>0,DataSummary!$C$19<>"",(ISNUMBER(DataSummary!$C$19)),DataSummary!$C$15<>"",DataSummary!$C$15<>0,(ISNUMBER(DataSummary!$C$15))),1.1*DataSummary!$C$15*Data!G135*((DataSummary!$C$19/100)*Data!L135),1.1*330*Data!G135*Data!L135) -> 0
A136: OUTPOST | B136: 4 | C136: SUM | D136: Twinsburg Outpost Garage (SUMPNE) | E136: Runoff / Storm Sewer | G136: 5 | I136: 57 | J136: 45 | K136: 54 | L136: 52 | M136: =IF(AND(DataSummary!$C$19<>0,DataSummary!$C$19<>"",(ISNUMBER(DataSummary!$C$19)),DataSummary!$C$15<>"",DataSummary!$C$15<>0,(ISNUMBER(DataSummary!$C$15))),1.1*DataSummary!$C$15*Data!G136*((DataSummary!$C$19/100)*Data!L136),1.1*330*Data!G136*Data!L136) -> 94380
A137: OUTPOST | B137: 4 | C137: TRU | D137: Brookfield Outpost Garage (TRUPSE) | E137: Holding Tank | G137: 7 | I137: 46 | J137: 45 | K137: 55 | L137: 48.66666667 | M137: =IF(AND(DataSummary!$C$19<>0,DataSummary!$C$19<>"",(ISNUMBER(DataSummary!$C$19)),DataSummary!$C$15<>"",DataSummary!$C$15<>0,(ISNUMBER(DataSummary!$C$15))),1.1*DataSummary!$C$15*Data!G137*((DataSummary!$C$19/100)*Data!L137),1.1*330*Data!G137*Data!L137) -> 123662
A138: OUTPOST | B138: 4 | C138: TRU | D138: Gustavus Outpost Garage (TRUPNO) | E138: Class 5 Well (Septic Tank and Mound System or Leach Field) | G138: 6 | I138: 46 | J138: 45 | K138: 55 | L138: 48.66666667 | M138: =IF(AND(DataSummary!$C$19<>0,DataSummary!$C$19<>"",(ISNUMBER(DataSummary!$C$19)),DataSummary!$C$15<>"",DataSummary!$C$15<>0,(ISNUMBER(DataSummary!$C$15))),1.1*DataSummary!$C$15*Data!G138*((DataSummary!$C$19/100)*Data!L138),1.1*330*Data!G138*Data!L138) -> 105996
A139: OUTPOST | B139: 4 | C139: TRU | D139: Trumbull Construction Office (TRUCON) | E139: 0 | I139: 46 | J139: 45 | K139: 55 | L139: 48.66666667 | M139: =IF(AND(DataSummary!$C$19<>0,DataSummary!$C$19<>"",(ISNUMBER(DataSummary!$C$19)),DataSummary!$C$15<>"",DataSummary!$C$15<>0,(ISNUMBER(DataSummary!$C$15))),1.1*DataSummary!$C$15*Data!G139*((DataSummary!$C$19/100)*Data!L139),1.1*330*Data!G139*Data!L139) -> 0
A140: OUTPOST | B140: 4 | C140: TRU | D140: Warren Outpost Yard (TRUPSW) | E140: 0 | G140: 5 | I140: 46 | J140: 45 | K140: 55 | L140: 48.66666667 | M140: =IF(AND(DataSummary!$C$19<>0,DataSummary!$C$19<>"",(ISNUMBER(DataSummary!$C$19)),DataSummary!$C$15<>"",DataSummary!$C$15<>0,(ISNUMBER(DataSummary!$C$15))),1.1*DataSummary!$C$15*Data!G140*((DataSummary!$C$19/100)*Data!L140),1.1*330*Data!G140*Data!L140) -> 88330
A141: OUTPOST | B141: 4 | C141: TRU | D141: West Farmington Outpost Garage (TRUPEA) | E141: Class 5 Well (Septic Tank and Mound System or Leach Field) | G141: 4 | I141: 46 | J141: 45 | K141: 55 | L141: 48.66666667 | M141: =IF(AND(DataSummary!$C$19<>0,DataSummary!$C$19<>"",(ISNUMBER(DataSummary!$C$19)),DataSummary!$C$15<>"",DataSummary!$C$15<>0,(ISNUMBER(DataSummary!$C$15))),1.1*DataSummary!$C$15*Data!G141*((DataSummary!$C$19/100)*Data!L141),1.1*330*Data!G141*Data!L141) -> 70664
A142: OUTPOST | B142: 5 | C142: COS | D142: New Castle Outpost Yard (COSPWE) | E142: 0 | G142: 0 | I142: 30 | J142: 32 | K142: 33 | L142: 31.66666667 | M142: =IF(AND(DataSummary!$C$19<>0,DataSummary!$C$19<>"",(ISNUMBER(DataSummary!$C$19)),DataSummary!$C$15<>"",DataSummary!$C$15<>0,(ISNUMBER(DataSummary!$C$15))),1.1*DataSummary!$C$15*Data!G142*((DataSummary!$C$19/100)*Data!L142),1.1*330*Data!G142*Data!L142) -> 0
A143: OUTPOST | B143: 5 | C143: FAI | D143: Baltimore Outpost Garage (FAIPNO) | E143: Public Sanitary Sewer | I143: 23 | J143: 31 | K143: 28 | L143: 27.33333333 | M143: =IF(AND(DataSummary!$C$19<>0,DataSummary!$C$19<>"",(ISNUMBER(DataSummary!$C$19)),DataSummary!$C$15<>"",DataSummary!$C$15<>0,(ISNUMBER(DataSummary!$C$15))),1.1*DataSummary!$C$15*Data!G143*((DataSummary!$C$19/100)*Data!L143),1.1*330*Data!G143*Data!L143) -> 0
A144: OUTPOST | B144: 5 | C144: FAI | D144: US Route 664 (FAIPEA) | E144: 0 | G144: 0 | I144: 23 | J144: 31 | K144: 28 | L144: 27.33333333 | M144: =IF(AND(DataSummary!$C$19<>0,DataSummary!$C$19<>"",(ISNUMBER(DataSummary!$C$19)),DataSummary!$C$15<>"",DataSummary!$C$15<>0,(ISNUMBER(DataSummary!$C$15))),1.1*DataSummary!$C$15*Data!G144*((DataSummary!$C$19/100)*Data!L144),1.1*330*Data!G144*Data!L144) -> 0
A145: OUTPOST | B145: 5 | C145: GUE | D145: Cumberland Outpost Yard (GUEPSW) | E145: 0 | G145: 0 | I145: 30 | J145: 34 | K145: 36 | L145: 33.33333333 | M145: =IF(AND(DataSummary!$C$19<>0,DataSummary!$C$19<>"",(ISNUMBER(DataSummary!$C$19)),DataSummary!$C$15<>"",DataSummary!$C$15<>0,(ISNUMBER(DataSummary!$C$15))),1.1*DataSummary!$C$15*Data!G145*((DataSummary!$C$19/100)*Data!L145),1.1*330*Data!G145*Data!L145) -> 0
A146: OUTPOST | B146: 5 | C146: GUE | D146: North Salem Outpost Garage (GUEPNW) | E146: Class 5 Well (Septic Tank and Mound System or Leach Field) | G146: 5 | I146: 30 | J146: 34 | K146: 36 | L146: 33.33333333 | M146: =IF(AND(DataSummary!$C$19<>0,DataSummary!$C$19<>"",(ISNUMBER(DataSummary!$C$19)),DataSummary!$C$15<>"",DataSummary!$C$15<>0,(ISNUMBER(DataSummary!$C$15))),1.1*DataSummary!$C$15*Data!G146*((DataSummary!$C$19/100)*Data!L146),1.1*330*Data!G146*Data!L146) -> 60500
A147: OUTPOST | B147: 5 | C147: GUE | D147: Old Washington Outpost Garage (GUEPCT) | E147: Class 5 Well (Septic Tank and Mound System or Leach Field) | G147: 6 | I147: 30 | J147: 34 | K147: 36 | L147: 33.33333333 | M147: =IF(AND(DataSummary!$C$19<>0,DataSummary!$C$19<>"",(ISNUMBER(DataSummary!$C$19)),DataSummary!$C$15<>"",DataSummary!$C$15<>0,(ISNUMBER(DataSummary!$C$15))),1.1*DataSummary!$C$15*Data!G147*((DataSummary!$C$19/100)*Data!L147),1.1*330*Data!G147*Data!L147) -> 72600
A148: OUTPOST | B148: 5 | C148: KNO | D148: Fredricktown Outpost Garage (KNOPNW) | E148: Public Sanitary Sewer | G148: 2 | I148: 29 | J148: 32 | K148: 38 | L148: 33 | M148: =IF(AND(DataSummary!$C$19<>0,DataSummary!$C$19<>"",(ISNUMBER(DataSummary!$C$19)),DataSummary!$C$15<>"",DataSummary!$C$15<>0,(ISNUMBER(DataSummary!$C$15))),1.1*DataSummary!$C$15*Data!G148*((DataSummary!$C$19/100)*Data!L148),1.1*330*Data!G148*Data!L148) -> 23958
A149: OUTPOST | B149: 5 | C149: KNO | D149: Millwood Outpost Garage (KNOPEA) | E149: 0 | G149: 0 | I149: 29 | J149: 32 | K149: 38 | L149: 33 | M149: =IF(AND(DataSummary!$C$19<>0,DataSummary!$C$19<>"",(ISNUMBER(DataSummary!$C$19)),DataSummary!$C$15<>"",DataSummary!$C$15<>0,(ISNUMBER(DataSummary!$C$15))),1.1*DataSummary!$C$15*Data!G149*((DataSummary!$C$19/100)*Data!L149),1.1*330*Data!G149*Data!L149) -> 0
A150: OUTPOST | B150: 5 | C150: LIC | D150: Brownsville Outpost Garage (LICPSE) | E150: Class 5 Well (Septic Tank and Mound System or Leach Field) | G150: 5 | I150: 31 | J150: 38 | K150: 35 | L150: 34.66666667 | M150: =IF(AND(DataSummary!$C$19<>0,DataSummary!$C$19<>"",(ISNUMBER(DataSummary!$C$19)),DataSummary!$C$15<>"",DataSummary!$C$15<>0,(ISNUMBER(DataSummary!$C$15))),1.1*DataSummary!$C$15*Data!G150*((DataSummary!$C$19/100)*Data!L150),1.1*330*Data!G150*Data!L150) -> 62920
A151: OUTPOST | B151: 5 | C151: LIC | D151: Etna Outpost Garage (LICPSW) | E151: Class 5 Well (Septic Tank and Mound System or Leach Field) | G151: 7 | I151: 31 | J151: 38 | K151: 35 | L151: 34.66666667 | M151: =IF(AND(DataSummary!$C$19<>0,DataSummary!$C$19<>"",(ISNUMBER(DataSummary!$C$19)),DataSummary!$C$15<>"",DataSummary!$C$15<>0,(ISNUMBER(DataSummary!$C$15))),1.1*DataSummary!$C$15*Data!G151*((DataSummary!$C$19/100)*Data!L151),1.1*330*Data!G151*Data!L151) -> 88088
A152: OUTPOST | B152: 5 | C152: LIC | D152: Marne Outpost Yard (LICPEA) | E152: 0 | G152: 0 | I152: 31 | J152: 38 | K152: 35 | L152: 34.66666667 | M152: =IF(AND(DataSummary!$C$19<>0,DataSummary!$C$19<>"",(ISNUMBER(DataSummary!$C$19)),DataSummary!$C$15<>"",DataSummary!$C$15<>0,(ISNUMBER(DataSummary!$C$15))),1.1*DataSummary!$C$15*Data!G152*((DataSummary!$C$19/100)*Data!L152),1.1*330*Data!G152*Data!L152) -> 0
A153: OUTPOST | B153: 5 | C153: MUS | D153: Dresden Outpost Garage (MUSPNO) | E153: Class 5 Well (Septic Tank and Mound System or Leach Field) | G153: 5 | I153: 32 | J153: 37 | K153: 37 | L153: 35.33333333 | M153: =IF(AND(DataSummary!$C$19<>0,DataSummary!$C$19<>"",(ISNUMBER(DataSummary!$C$19)),DataSummary!$C$15<>"",DataSummary!$C$15<>0,(ISNUMBER(DataSummary!$C$15))),1.1*DataSummary!$C$15*Data!G153*((DataSummary!$C$19/100)*Data!L153),1.1*330*Data!G153*Data!L153) -> 64130
A154: OUTPOST | B154: 5 | C154: MUS | D154: Duncan Falls Outpost Garage (MUSPSO) | E154: Class 5 Well (Septic Tank and Mound System or Leach Field) | G154: 5 | I154: 32 | J154: 37 | K154: 37 | L154: 35.33333333 | M154: =IF(AND(DataSummary!$C$19<>0,DataSummary!$C$19<>"",(ISNUMBER(DataSummary!$C$19)),DataSummary!$C$15<>"",DataSummary!$C$15<>0,(ISNUMBER(DataSummary!$C$15))),1.1*DataSummary!$C$15*Data!G154*((DataSummary!$C$19/100)*Data!L154),1.1*330*Data!G154*Data!L154) -> 64130
A155: OUTPOST | B155: 5 | C155: MUS | D155: Moxahala Outpost Garage (MUSPSW) | E155: Class 5 Well (Septic Tank and Mound System or Leach Field) | G155: 3 | I155: 32 | J155: 37 | K155: 37 | L155: 35.33333333 | M155: =IF(AND(DataSummary!$C$19<>0,DataSummary!$C$19<>"",(ISNUMBER(DataSummary!$C$19)),DataSummary!$C$15<>"",DataSummary!$C$15<>0,(ISNUMBER(DataSummary!$C$15))),1.1*DataSummary!$C$15*Data!G155*((DataSummary!$C$19/100)*Data!L155),1.1*330*Data!G155*Data!L155) -> 38478
A156: OUTPOST | B156: 5 | C156: PER | D156: Shawnee Outpost Yard (PERPSO) | E156: 0 | I156: 20 | J156: 30 | K156: 26 | L156: 25.33333333 | M156: =IF(AND(DataSummary!$C$19<>0,DataSummary!$C$19<>"",(ISNUMBER(DataSummary!$C$19)),DataSummary!$C$15<>"",DataSummary!$C$15<>0,(ISNUMBER(DataSummary!$C$15))),1.1*DataSummary!$C$15*Data!G156*((DataSummary!$C$19/100)*Data!L156),1.1*330*Data!G156*Data!L156) -> 0
A157: OUTPOST | B157: 6 | C157: DEL | D157: Sunbury Outpost Garage (DELPEA) | E157: 0 | I157: 28 | J157: 35 | K157: 34 | L157: 32.33333333 | M157: =IF(AND(DataSummary!$C$19<>0,DataSummary!$C$19<>"",(ISNUMBER(DataSummary!$C$19)),DataSummary!$C$15<>"",DataSummary!$C$15<>0,(ISNUMBER(DataSummary!$C$15))),1.1*DataSummary!$C$15*Data!G157*((DataSummary!$C$19/100)*Data!L157),1.1*330*Data!G157*Data!L157) -> 0
A158: OUTPOST | B158: 6 | C158: FAY | D158: Jeffersonville Outpost Garage (FAYPNW) | E158: Holding Tank | G158: 6 | I158: 29 | J158: 32 | K158: 38 | L158: 33 | M158: =IF(AND(DataSummary!$C$19<>0,DataSummary!$C$19<>"",(ISNUMBER(DataSummary!$C$19)),DataSummary!$C$15<>"",DataSummary!$C$15<>0,(ISNUMBER(DataSummary!$C$15))),1.1*DataSummary!$C$15*Data!G158*((DataSummary!$C$19/100)*Data!L158),1.1*330*Data!G158*Data!L158) -> 71874
A159: OUTPOST | B159: 6 | C159: FRA | D159: Canal Winchester Outpost Yard (FRAPSE) | E159: 0 | I159: 30 | J159: 41 | K159: 32 | L159: 34.33333333 | M159: =IF(AND(DataSummary!$C$19<>0,DataSummary!$C$19<>"",(ISNUMBER(DataSummary!$C$19)),DataSummary!$C$15<>"",DataSummary!$C$15<>0,(ISNUMBER(DataSummary!$C$15))),1.1*DataSummary!$C$15*Data!G159*((DataSummary!$C$19/100)*Data!L159),1.1*330*Data!G159*Data!L159) -> 0
A160: OUTPOST | B160: 6 | C160: FRA | D160: Fifth Avenue Outpost Garage (FRAPEA) | E160: Holding Tank | G160: 15 | I160: 30 | J160: 41 | K160: 32 | L160: 34.33333333 | M160: =IF(AND(DataSummary!$C$19<>0,DataSummary!$C$19<>"",(ISNUMBER(DataSummary!$C$19)),DataSummary!$C$15<>"",DataSummary!$C$15<>0,(ISNUMBER(DataSummary!$C$15))),1.1*DataSummary!$C$15*Data!G160*((DataSummary!$C$19/100)*Data!L160),1.1*330*Data!G160*Data!L160) -> 186945
A161: OUTPOST | B161: 6 | C161: FRA | D161: Grove City Outpost Garage (FRAPSW) | E161: Holding Tank | G161: 13 | I161: 30 | J161: 41 | K161: 32 | L161: 34.33333333 | M161: =IF(AND(DataSummary!$C$19<>0,DataSummary!$C$19<>"",(ISNUMBER(DataSummary!$C$19)),DataSummary!$C$15<>"",DataSummary!$C$15<>0,(ISNUMBER(DataSummary!$C$15))),1.1*DataSummary!$C$15*Data!G161*((DataSummary!$C$19/100)*Data!L161),1.1*330*Data!G161*Data!L161) -> 162019
A162: OUTPOST | B162: 6 | C162: FRA | D162: Roberts Road (Hilliard) Outpost Garage (FRAPWE) | E162: Holding Tank | G162: 13 | I162: 30 | J162: 41 | K162: 32 | L162: 34.33333333 | M162: =IF(AND(DataSummary!$C$19<>0,DataSummary!$C$19<>"",(ISNUMBER(DataSummary!$C$19)),DataSummary!$C$15<>"",DataSummary!$C$15<>0,(ISNUMBER(DataSummary!$C$15))),1.1*DataSummary!$C$15*Data!G162*((DataSummary!$C$19/100)*Data!L162),1.1*330*Data!G162*Data!L162) -> 162019
A163: OUTPOST | B163: 6 | C163: FRA | D163: Worthington/Wilson Bridge Outpost Garage (FRAPNO) | E163: Holding Tank | I163: 30 | J163: 41 | K163: 32 | L163: 34.33333333 | M163: =IF(AND(DataSummary!$C$19<>0,DataSummary!$C$19<>"",(ISNUMBER(DataSummary!$C$19)),DataSummary!$C$15<>"",DataSummary!$C$15<>0,(ISNUMBER(DataSummary!$C$15))),1.1*DataSummary!$C$15*Data!G163*((DataSummary!$C$19/100)*Data!L163),1.1*330*Data!G163*Data!L163) -> 0
A164: OUTPOST | B164: 6 | C164: MAD | D164: Land Outpost (MADPNW) | E164: 0 | I164: 29 | J164: 36 | K164: 40 | L164: 35 | M164: =IF(AND(DataSummary!$C$19<>0,DataSummary!$C$19<>"",(ISNUMBER(DataSummary!$C$19)),DataSummary!$C$15<>"",DataSummary!$C$15<>0,(ISNUMBER(DataSummary!$C$15))),1.1*DataSummary!$C$15*Data!G164*((DataSummary!$C$19/100)*Data!L164),1.1*330*Data!G164*Data!L164) -> 0
A165: OUTPOST | B165: 6 | C165: MAD | D165: Mount Sterling Outpost Garage (MADPSE) | E165: Runoff / Storm Sewer | G165: 6 | I165: 29 | J165: 36 | K165: 40 | L165: 35 | M165: =IF(AND(DataSummary!$C$19<>0,DataSummary!$C$19<>"",(ISNUMBER(DataSummary!$C$19)),DataSummary!$C$15<>"",DataSummary!$C$15<>0,(ISNUMBER(DataSummary!$C$15))),1.1*DataSummary!$C$15*Data!G165*((DataSummary!$C$19/100)*Data!L165),1.1*330*Data!G165*Data!L165) -> 76230
A166: OUTPOST | B166: 6 | C166: MAD | D166: West Jefferson Outpost Garage (MADPEA) | E166: Package Plant | G166: 6 | I166: 29 | J166: 36 | K166: 40 | L166: 35 | M166: =IF(AND(DataSummary!$C$19<>0,DataSummary!$C$19<>"",(ISNUMBER(DataSummary!$C$19)),DataSummary!$C$15<>"",DataSummary!$C$15<>0,(ISNUMBER(DataSummary!$C$15))),1.1*DataSummary!$C$15*Data!G166*((DataSummary!$C$19/100)*Data!L166),1.1*330*Data!G166*Data!L166) -> 76230
A167: OUTPOST | B167: 6 | C167: MRW | D167: Chesterville Outpost Garage (MRWPEA) | E167: Holding Tank | G167: 4 | I167: 37 | J167: 41 | K167: 46 | L167: 41.33333333 | M167: =IF(AND(DataSummary!$C$19<>0,DataSummary!$C$19<>"",(ISNUMBER(DataSummary!$C$19)),DataSummary!$C$15<>"",DataSummary!$C$15<>0,(ISNUMBER(DataSummary!$C$15))),1.1*DataSummary!$C$15*Data!G167*((DataSummary!$C$19/100)*Data!L167),1.1*330*Data!G167*Data!L167) -> 60016
A168: OUTPOST | B168: 6 | C168: UNI | D168: Richwood Outpost Garage (UNIPNE) | E168: Class 5 Well (Septic Tank and Mound System or Leach Field) | G168: 6 | I168: 25 | J168: 36 | K168: 38 | L168: 33 | M168: =IF(AND(DataSummary!$C$19<>0,DataSummary!$C$19<>"",(ISNUMBER(DataSummary!$C$19)),DataSummary!$C$15<>"",DataSummary!$C$15<>0,(ISNUMBER(DataSummary!$C$15))),1.1*DataSummary!$C$15*Data!G168*((DataSummary!$C$19/100)*Data!L168),1.1*330*Data!G168*Data!L168) -> 71874
A169: OUTPOST | B169: 7 | C169: AUG | D169: Saint Marys Outpost Garage (AUGPWE) | E169: Public Sanitary Sewer | I169: 26 | J169: 30 | K169: 30 | L169: 28.66666667 | M169: =IF(AND(DataSummary!$C$19<>0,DataSummary!$C$19<>"",(ISNUMBER(DataSummary!$C$19)),DataSummary!$C$15<>"",DataSummary!$C$15<>0,(ISNUMBER(DataSummary!$C$15))),1.1*DataSummary!$C$15*Data!G169*((DataSummary!$C$19/100)*Data!L169),1.1*330*Data!G169*Data!L169) -> 0
A170: OUTPOST | B170: 7 | C170: CHP | D170: Mechanicsburg Outpost Garage (CHPPEA) | E170: Holding Tank | G170: 3 | I170: 26 | J170: 29 | K170: 37 | L170: 30.66666667 | M170: =IF(AND(DataSummary!$C$19<>0,DataSummary!$C$19<>"",(ISNUMBER(DataSummary!$C$19)),DataSummary!$C$15<>"",DataSummary!$C$15<>0,(ISNUMBER(DataSummary!$C$15))),1.1*DataSummary!$C$15*Data!G170*((DataSummary!$C$19/100)*Data!L170),1.1*330*Data!G170*Data!L170) -> 33396
A171: OUTPOST | B171: 7 | C171: CHP | D171: Saint Paris Outpost Garage (CHPPWE) | E171: Holding Tank | G171: 2 | I171: 26 | J171: 29 | K171: 37 | L171: 30.66666667 | M171: =IF(AND(DataSummary!$C$19<>0,DataSummary!$C$19<>"",(ISNUMBER(DataSummary!$C$19)),DataSummary!$C$15<>"",DataSummary!$C$15<>0,(ISNUMBER(DataSummary!$C$15))),1.1*DataSummary!$C$15*Data!G171*((DataSummary!$C$19/100)*Data!L171),1.1*330*Data!G171*Data!L171) -> 22264
A172: OUTPOST | B172: 7 | C172: CLA | D172: Enon Outpost Garage (CLAPSW) | E172: Holding Tank | G172: 5 | I172: 30 | J172: 35 | K172: 35 | L172: 33.33333333 | M172: =IF(AND(DataSummary!$C$19<>0,DataSummary!$C$19<>"",(ISNUMBER(DataSummary!$C$19)),DataSummary!$C$15<>"",DataSummary!$C$15<>0,(ISNUMBER(DataSummary!$C$15))),1.1*DataSummary!$C$15*Data!G172*((DataSummary!$C$19/100)*Data!L172),1.1*330*Data!G172*Data!L172) -> 60500
A173: OUTPOST | B173: 7 | C173: CLA | D173: Harmony Outpost Garage (CLAPEA) | E173: Holding Tank | G173: 4 | I173: 30 | J173: 35 | K173: 35 | L173: 33.33333333 | M173: =IF(AND(DataSummary!$C$19<>0,DataSummary!$C$19<>"",(ISNUMBER(DataSummary!$C$19)),DataSummary!$C$15<>"",DataSummary!$C$15<>0,(ISNUMBER(DataSummary!$C$15))),1.1*DataSummary!$C$15*Data!G173*((DataSummary!$C$19/100)*Data!L173),1.1*330*Data!G173*Data!L173) -> 48400
A174: OUTPOST | B174: 7 | C174: DAR | D174: Dawn Outpost Garage (DARPNO) | E174: Holding Tank | G174: 5 | I174: 31 | J174: 28 | K174: 34 | L174: 31 | M174: =IF(AND(DataSummary!$C$19<>0,DataSummary!$C$19<>"",(ISNUMBER(DataSummary!$C$19)),DataSummary!$C$15<>"",DataSummary!$C$15<>0,(ISNUMBER(DataSummary!$C$15))),1.1*DataSummary!$C$15*Data!G174*((DataSummary!$C$19/100)*Data!L174),1.1*330*Data!G174*Data!L174) -> 56265
A175: OUTPOST | B175: 7 | C175: DAR | D175: Fort Jefferson Outpost Yard (DARPSO) | E175: 0 | I175: 31 | J175: 28 | K175: 34 | L175: 31 | M175: =IF(AND(DataSummary!$C$19<>0,DataSummary!$C$19<>"",(ISNUMBER(DataSummary!$C$19)),DataSummary!$C$15<>"",DataSummary!$C$15<>0,(ISNUMBER(DataSummary!$C$15))),1.1*DataSummary!$C$15*Data!G175*((DataSummary!$C$19/100)*Data!L175),1.1*330*Data!G175*Data!L175) -> 0
A176: OUTPOST | B176: 7 | C176: LOG | D176: East Liberty Outpost Garage (LOGPSE) | E176: Holding Tank | G176: 5 | I176: 32 | J176: 31 | K176: 38 | L176: =AVERAGE(I176:K176) -> 33.66666667 | M176: =IF(AND(DataSummary!$C$19<>0,DataSummary!$C$19<>"",(ISNUMBER(DataSummary!$C$19)),DataSummary!$C$15<>"",DataSummary!$C$15<>0,(ISNUMBER(DataSummary!$C$15))),1.1*DataSummary!$C$15*Data!G176*((DataSummary!$C$19/100)*Data!L176),1.1*330*Data!G176*Data!L176) -> 61105
A177: OUTPOST | B177: 7 | C177: LOG | D177: Lakeview Outpost Garage (LOGPNW) | E177: Public Sanitary Sewer | G177: 3 | I177: 32 | J177: 31 | K177: 38 | L177: 33.66666667 | M177: =IF(AND(DataSummary!$C$19<>0,DataSummary!$C$19<>"",(ISNUMBER(DataSummary!$C$19)),DataSummary!$C$15<>"",DataSummary!$C$15<>0,(ISNUMBER(DataSummary!$C$15))),1.1*DataSummary!$C$15*Data!G177*((DataSummary!$C$19/100)*Data!L177),1.1*330*Data!G177*Data!L177) -> 36663
A178: OUTPOST | B178: 7 | C178: LOG | D178: Old Northwood Outpost (LOGPCE) | E178: 0 | I178: 32 | J178: 31 | K178: 38 | L178: 33.66666667 | M178: =IF(AND(DataSummary!$C$19<>0,DataSummary!$C$19<>"",(ISNUMBER(DataSummary!$C$19)),DataSummary!$C$15<>"",DataSummary!$C$15<>0,(ISNUMBER(DataSummary!$C$15))),1.1*DataSummary!$C$15*Data!G178*((DataSummary!$C$19/100)*Data!L178),1.1*330*Data!G178*Data!L178) -> 0
A179: OUTPOST | B179: 7 | C179: MER | D179: Cassella Outpost Garage (MERPSO) | E179: Holding Tank | G179: 3 | I179: 23 | J179: 22 | K179: 30 | L179: 25 | M179: =IF(AND(DataSummary!$C$19<>0,DataSummary!$C$19<>"",(ISNUMBER(DataSummary!$C$19)),DataSummary!$C$15<>"",DataSummary!$C$15<>0,(ISNUMBER(DataSummary!$C$15))),1.1*DataSummary!$C$15*Data!G179*((DataSummary!$C$19/100)*Data!L179),1.1*330*Data!G179*Data!L179) -> 27225
A180: OUTPOST | B180: 7 | C180: MER | D180: Mercer Outpost Garage (MERPNO) | E180: Holding Tank | G180: 3 | I180: 23 | J180: 22 | K180: 30 | L180: 25 | M180: =IF(AND(DataSummary!$C$19<>0,DataSummary!$C$19<>"",(ISNUMBER(DataSummary!$C$19)),DataSummary!$C$15<>"",DataSummary!$C$15<>0,(ISNUMBER(DataSummary!$C$15))),1.1*DataSummary!$C$15*Data!G180*((DataSummary!$C$19/100)*Data!L180),1.1*330*Data!G180*Data!L180) -> 27225
A181: OUTPOST | B181: 7 | C181: MIA | D181: Ludlow Falls Outpost Land (MIAPSW) | E181: 0 | I181: 26 | J181: 30 | K181: 34 | L181: 30 | M181: =IF(AND(DataSummary!$C$19<>0,DataSummary!$C$19<>"",(ISNUMBER(DataSummary!$C$19)),DataSummary!$C$15<>"",DataSummary!$C$15<>0,(ISNUMBER(DataSummary!$C$15))),1.1*DataSummary!$C$15*Data!G181*((DataSummary!$C$19/100)*Data!L181),1.1*330*Data!G181*Data!L181) -> 0
A182: OUTPOST | B182: 7 | C182: MIA | D182: Piqua Outpost Garage (MIAPNO) | E182: Public Sanitary Sewer | G182: 5 | I182: 26 | J182: 30 | K182: 34 | L182: 30 | M182: =IF(AND(DataSummary!$C$19<>0,DataSummary!$C$19<>"",(ISNUMBER(DataSummary!$C$19)),DataSummary!$C$15<>"",DataSummary!$C$15<>0,(ISNUMBER(DataSummary!$C$15))),1.1*DataSummary!$C$15*Data!G182*((DataSummary!$C$19/100)*Data!L182),1.1*330*Data!G182*Data!L182) -> 54450
A183: OUTPOST | B183: 7 | C183: MOT | D183: 5994 Poe Avenue (MOTPCT) | E183: 0 | I183: 18 | J183: 20 | K183: 19 | L183: 19 | M183: =IF(AND(DataSummary!$C$19<>0,DataSummary!$C$19<>"",(ISNUMBER(DataSummary!$C$19)),DataSummary!$C$15<>"",DataSummary!$C$15<>0,(ISNUMBER(DataSummary!$C$15))),1.1*DataSummary!$C$15*Data!G183*((DataSummary!$C$19/100)*Data!L183),1.1*330*Data!G183*Data!L183) -> 0
A184: OUTPOST | B184: 7 | C184: MOT | D184: Lyons Road Outpost Garage (MOTPSE) | E184: Public Sanitary Sewer | G184: 10 | I184: 18 | J184: 20 | K184: 19 | L184: 19 | M184: =IF(AND(DataSummary!$C$19<>0,DataSummary!$C$19<>"",(ISNUMBER(DataSummary!$C$19)),DataSummary!$C$15<>"",DataSummary!$C$15<>0,(ISNUMBER(DataSummary!$C$15))),1.1*DataSummary!$C$15*Data!G184*((DataSummary!$C$19/100)*Data!L184),1.1*330*Data!G184*Data!L184) -> 68970
A185: OUTPOST | B185: 7 | C185: MOT | D185: Shull Road Outpost Garage (MOTPNE) | E185: Public Sanitary Sewer | I185: 18 | J185: 20 | K185: 19 | L185: 19 | M185: =IF(AND(DataSummary!$C$19<>0,DataSummary!$C$19<>"",(ISNUMBER(DataSummary!$C$19)),DataSummary!$C$15<>"",DataSummary!$C$15<>0,(ISNUMBER(DataSummary!$C$15))),1.1*DataSummary!$C$15*Data!G185*((DataSummary!$C$19/100)*Data!L185),1.1*330*Data!G185*Data!L185) -> 0
A186: OUTPOST | B186: 7 | C186: SHE | D186: Dixie Outpost Yard (SHEPNO) | E186: 0 | I186: 29 | J186: 30 | K186: 31 | L186: 30 | M186: =IF(AND(DataSummary!$C$19<>0,DataSummary!$C$19<>"",(ISNUMBER(DataSummary!$C$19)),DataSummary!$C$15<>"",DataSummary!$C$15<>0,(ISNUMBER(DataSummary!$C$15))),1.1*DataSummary!$C$15*Data!G186*((DataSummary!$C$19/100)*Data!L186),1.1*330*Data!G186*Data!L186) -> 0
A187: OUTPOST | B187: 7 | C187: SHE | D187: Newport Outpost Garage (SHEPSW) | E187: 0 | I187: 29 | J187: 30 | K187: 31 | L187: 30 | M187: =IF(AND(DataSummary!$C$19<>0,DataSummary!$C$19<>"",(ISNUMBER(DataSummary!$C$19)),DataSummary!$C$15<>"",DataSummary!$C$15<>0,(ISNUMBER(DataSummary!$C$15))),1.1*DataSummary!$C$15*Data!G187*((DataSummary!$C$19/100)*Data!L187),1.1*330*Data!G187*Data!L187) -> 0
A188: OUTPOST | B188: 8 | C188: BUT | D188: Middletown Outpost Garage (BUTPNE) | E188: Class 5 Well (Septic Tank and Mound System or Leach Field) | G188: 3 | I188: 25 | J188: 29 | K188: 29 | L188: 27.66666667 | M188: =IF(AND(DataSummary!$C$19<>0,DataSummary!$C$19<>"",(ISNUMBER(DataSummary!$C$19)),DataSummary!$C$15<>"",DataSummary!$C$15<>0,(ISNUMBER(DataSummary!$C$15))),1.1*DataSummary!$C$15*Data!G188*((DataSummary!$C$19/100)*Data!L188),1.1*330*Data!G188*Data!L188) -> 30129
A189: OUTPOST | B189: 8 | C189: CLE | D189: Milford Outpost Garage (CLEPNW) | E189: Public Sanitary Sewer | G189: 8 | I189: 21 | J189: 21 | K189: 25 | L189: 22.33333333 | M189: =IF(AND(DataSummary!$C$19<>0,DataSummary!$C$19<>"",(ISNUMBER(DataSummary!$C$19)),DataSummary!$C$15<>"",DataSummary!$C$15<>0,(ISNUMBER(DataSummary!$C$15))),1.1*DataSummary!$C$15*Data!G189*((DataSummary!$C$19/100)*Data!L189),1.1*330*Data!G189*Data!L189) -> 64856
A190: OUTPOST | B190: 8 | C190: CLE | D190: Old Milford Outpost Garage (CLEPNWO) | E190: 0 | I190: 21 | J190: 21 | K190: 25 | L190: 22.33333333 | M190: =IF(AND(DataSummary!$C$19<>0,DataSummary!$C$19<>"",(ISNUMBER(DataSummary!$C$19)),DataSummary!$C$15<>"",DataSummary!$C$15<>0,(ISNUMBER(DataSummary!$C$15))),1.1*DataSummary!$C$15*Data!G190*((DataSummary!$C$19/100)*Data!L190),1.1*330*Data!G190*Data!L190) -> 0
A191: OUTPOST | B191: 8 | C191: CLE | D191: Richmond Outpost Garage (CLEPSW) | E191: Public Sanitary Sewer | G191: 7 | I191: 21 | J191: 21 | K191: 25 | L191: 22.33333333 | M191: =IF(AND(DataSummary!$C$19<>0,DataSummary!$C$19<>"",(ISNUMBER(DataSummary!$C$19)),DataSummary!$C$15<>"",DataSummary!$C$15<>0,(ISNUMBER(DataSummary!$C$15))),1.1*DataSummary!$C$15*Data!G191*((DataSummary!$C$19/100)*Data!L191),1.1*330*Data!G191*Data!L191) -> 56749
A192: OUTPOST | B192: 8 | C192: CLI | D192: Wilmington Outpost Garage (CLIPNO) | E192: Aeration System | G192: 5 | I192: 29 | J192: 32 | K192: 37 | L192: 32.66666667 | M192: =IF(AND(DataSummary!$C$19<>0,DataSummary!$C$19<>"",(ISNUMBER(DataSummary!$C$19)),DataSummary!$C$15<>"",DataSummary!$C$15<>0,(ISNUMBER(DataSummary!$C$15))),1.1*DataSummary!$C$15*Data!G192*((DataSummary!$C$19/100)*Data!L192),1.1*330*Data!G192*Data!L192) -> 59290
A193: OUTPOST | B193: 8 | C193: HAM | D193: Blue Ash Outpost Garage (HAMPNE) | E193: Public Sanitary Sewer | G193: 9 | I193: 23 | J193: 22 | K193: 27 | L193: 24 | M193: =IF(AND(DataSummary!$C$19<>0,DataSummary!$C$19<>"",(ISNUMBER(DataSummary!$C$19)),DataSummary!$C$15<>"",DataSummary!$C$15<>0,(ISNUMBER(DataSummary!$C$15))),1.1*DataSummary!$C$15*Data!G193*((DataSummary!$C$19/100)*Data!L193),1.1*330*Data!G193*Data!L193) -> 78408
A194: OUTPOST | B194: 8 | C194: HAM | D194: Miamitown Outpost Garage (HAMPWE) | E194: Class 5 Well (Septic Tank and Mound System or Leach Field) | G194: 8 | I194: 23 | J194: 22 | K194: 27 | L194: 24 | M194: =IF(AND(DataSummary!$C$19<>0,DataSummary!$C$19<>"",(ISNUMBER(DataSummary!$C$19)),DataSummary!$C$15<>"",DataSummary!$C$15<>0,(ISNUMBER(DataSummary!$C$15))),1.1*DataSummary!$C$15*Data!G194*((DataSummary!$C$19/100)*Data!L194),1.1*330*Data!G194*Data!L194) -> 69696
A195: OUTPOST | B195: 8 | C195: HAM | D195: Sharonville Outpost Garage (HAMPNO) | E195: 0 | I195: 23 | J195: 22 | K195: 27 | L195: 24 | M195: =IF(AND(DataSummary!$C$19<>0,DataSummary!$C$19<>"",(ISNUMBER(DataSummary!$C$19)),DataSummary!$C$15<>"",DataSummary!$C$15<>0,(ISNUMBER(DataSummary!$C$15))),1.1*DataSummary!$C$15*Data!G195*((DataSummary!$C$19/100)*Data!L195),1.1*330*Data!G195*Data!L195) -> 0
A196: OUTPOST | B196: 8 | C196: PRE | D196: Eaton Outpost Garage (PREPCT) | E196: Class 5 Well (Septic Tank and Mound System or Leach Field) | I196: 29 | J196: 33 | K196: 41 | L196: 34.33333333 | M196: =IF(AND(DataSummary!$C$19<>0,DataSummary!$C$19<>"",(ISNUMBER(DataSummary!$C$19)),DataSummary!$C$15<>"",DataSummary!$C$15<>0,(ISNUMBER(DataSummary!$C$15))),1.1*DataSummary!$C$15*Data!G196*((DataSummary!$C$19/100)*Data!L196),1.1*330*Data!G196*Data!L196) -> 0
A197: OUTPOST | B197: 8 | C197: PRE | D197: Morning Sun Outpost Garage (PREPSW) | E197: 0 | I197: 29 | J197: 33 | K197: 41 | L197: 34.33333333 | M197: =IF(AND(DataSummary!$C$19<>0,DataSummary!$C$19<>"",(ISNUMBER(DataSummary!$C$19)),DataSummary!$C$15<>"",DataSummary!$C$15<>0,(ISNUMBER(DataSummary!$C$15))),1.1*DataSummary!$C$15*Data!G197*((DataSummary!$C$19/100)*Data!L197),1.1*330*Data!G197*Data!L197) -> 0
A198: OUTPOST | B198: 8 | C198: WAR | D198: Monroe Outpost Garage (WARPWE) | E198: Class 5 Well (Septic Tank and Mound System or Leach Field) | G198: 10 | I198: 24 | J198: 29 | K198: 30 | L198: 27.66666667 | M198: =IF(AND(DataSummary!$C$19<>0,DataSummary!$C$19<>"",(ISNUMBER(DataSummary!$C$19)),DataSummary!$C$15<>"",DataSummary!$C$15<>0,(ISNUMBER(DataSummary!$C$15))),1.1*DataSummary!$C$15*Data!G198*((DataSummary!$C$19/100)*Data!L198),1.1*330*Data!G198*Data!L198) -> 100430
A199: OUTPOST | B199: 9 | C199: ADA | D199: Peebles Outpost Garage (ADAPNO) | E199: 0 | G199: 3 | I199: 16 | J199: 18 | K199: 20 | L199: 18 | M199: =IF(AND(DataSummary!$C$19<>0,DataSummary!$C$19<>"",(ISNUMBER(DataSummary!$C$19)),DataSummary!$C$15<>"",DataSummary!$C$15<>0,(ISNUMBER(DataSummary!$C$15))),1.1*DataSummary!$C$15*Data!G199*((DataSummary!$C$19/100)*Data!L199),1.1*330*Data!G199*Data!L199) -> 19602
A200: OUTPOST | B200: 9 | C200: BRO | D200: White Oak Outpost Garage (BROPCT) | E200: 0 | G200: 3 | I200: 16 | J200: 17 | K200: 22 | L200: 18.33333333 | M200: =IF(AND(DataSummary!$C$19<>0,DataSummary!$C$19<>"",(ISNUMBER(DataSummary!$C$19)),DataSummary!$C$15<>"",DataSummary!$C$15<>0,(ISNUMBER(DataSummary!$C$15))),1.1*DataSummary!$C$15*Data!G200*((DataSummary!$C$19/100)*Data!L200),1.1*330*Data!G200*Data!L200) -> 19965
... 37 more rows

Sheet Brine and WW (hidden)
A1: District | B1: 4
A3: Row Labels | B3: Five Year Average Volume of Salt Brine Made | C3: Estimated Wash Water Volume
A4: Alliance Outpost Yard (STAPNE) | C4: 0
A5: Ashtabula County Garage (ATBCG) | B5: 296016.6 | C5: 207999
A6: Bailey Road Outpost Garage (MAHPNW) | C6: 68728
A7: Brookfield Outpost Garage (TRUPSE) | C7: 123662
A8: Canal Fulton Outpost Yard (STAPNW) | C8: 0
A9: Conneaut Outpost Garage (ATBPNE) | C9: 115555
A10: District Four Headquarters (SUMHQ) | C10: 0
A11: Dorset Outpost Garage (ATBPCT) | C11: 92444
A12: Drakesburg Outpost Garage (PORPNE) | C12: 86515
A13: Greensburg Airport Outpost Garage (SUMPSE) | C13: 75504
A14: Gustavus Outpost Garage (TRUPNO) | C14: 105996
A15: Harperfield Outpost Garage (ATBPNW) | C15: 69333
A16: Interchange / Norton Outpost Garage (SUMPWE) | C16: 132132
A17: Kelly Avenue Outpost Garage (SUMPEA) | C17: 0
A18: Mahoning County (Canfield) County Garage (MAHCG) | B18: 212376.19 | C18: 154638
A19: Millersburg Rd. Outpost Yard (STAPWE) | C19: 0
A20: N. Lima Outpost (MAHPSE) | C20: 137456
A21: Portage County / Rootstown County Garage (PORCG) | B21: 254911.9 | C21: 190333
A22: Rome Outpost Garage (ATBPSW) | C22: 92444
A23: Sebring Outpost Garage (MAHPWE) | C23: 34364
A24: South Avenue Outpost Yard (MAHPNE) | C24: 0
A25: Stark County Garage (STACG) | B25: 456846.8 | C25: 275638
A26: Summit (Boston Heights) County Garage (SUMCG) | B26: 427736.3 | C26: 188760
A27: Trumbull (Cortland) County Garage (TRUCG) | B27: 144389.2 | C27: 141328
A28: Trumbull Construction Office (TRUCON) | C28: 0
A29: Twinsburg Outpost Garage (SUMPNE) | C29: 94380
A30: Warren Outpost Yard (TRUPSW) | C30: 88330
A31: West Farmington Outpost Garage (TRUPEA) | C31: 70664
A32: Williamsfield Outpost Garage (ATBPSE) | C32: 92444
A33: Yale Outpost Garage (PORPSE) | C33: 69212
A34: Grand Total | B34: 1792276.99 | C34: 2707859

Sheet LaneMiles (hidden)
A1: District | B1: 4
A3: Row Labels | B3: Sum of Lane Miles
A4: Alliance Outpost Yard (STAPNE)
A5: Ashtabula County Garage (ATBCG) | B5: 840.08
A6: Bailey Road Outpost Garage (MAHPNW)
A7: Brookfield Outpost Garage (TRUPSE)
A8: Canal Fulton Outpost Yard (STAPNW)
A9: Conneaut Outpost Garage (ATBPNE)
A10: District Four Headquarters (SUMHQ)
A11: Dorset Outpost Garage (ATBPCT)
A12: Drakesburg Outpost Garage (PORPNE)
A13: Greensburg Airport Outpost Garage (SUMPSE)
A14: Gustavus Outpost Garage (TRUPNO)
A15: Harperfield Outpost Garage (ATBPNW)
A16: Interchange / Norton Outpost Garage (SUMPWE)
A17: Kelly Avenue Outpost Garage (SUMPEA)
A18: Mahoning County (Canfield) County Garage (MAHCG) | B18: 645.15
A19: Millersburg Rd. Outpost Yard (STAPWE)
A20: N. Lima Outpost (MAHPSE)
A21: Portage County / Rootstown County Garage (PORCG) | B21: 494.97
A22: Rome Outpost Garage (ATBPSW)
A23: Sebring Outpost Garage (MAHPWE)
A24: South Avenue Outpost Yard (MAHPNE)
A25: Stark County Garage (STACG) | B25: 750.04
A26: Summit (Boston Heights) County Garage (SUMCG) | B26: 579.84
A27: Trumbull (Cortland) County Garage (TRUCG) | B27: 843.58
A28: Trumbull Construction Office (TRUCON)
A29: Twinsburg Outpost Garage (SUMPNE)
A30: Warren Outpost Yard (TRUPSW)
A31: West Farmington Outpost Garage (TRUPEA)
A32: Williamsfield Outpost Garage (ATBPSE)
A33: Yale Outpost Garage (PORPSE)
A34: Grand Total | B34: 4153.66

Sheet Trucks (hidden)
A1: District | B1: 4
A3: Row Labels | B3: Sum of Number of Trucks
A4: Alliance Outpost Yard (STAPNE)
A5: Ashtabula County Garage (ATBCG) | B5: 9
A6: Bailey Road Outpost Garage (MAHPNW) | B6: 4
A7: Brookfield Outpost Garage (TRUPSE) | B7: 7
A8: Canal Fulton Outpost Yard (STAPNW)
A9: Conneaut Outpost Garage (ATBPNE) | B9: 5
A10: District Four Headquarters (SUMHQ)
A11: Dorset Outpost Garage (ATBPCT) | B11: 4
A12: Drakesburg Outpost Garage (PORPNE) | B12: 5
A13: Greensburg Airport Outpost Garage (SUMPSE) | B13: 4
A14: Gustavus Outpost Garage (TRUPNO) | B14: 6
A15: Harperfield Outpost Garage (ATBPNW) | B15: 3
A16: Interchange / Norton Outpost Garage (SUMPWE) | B16: 7
A17: Kelly Avenue Outpost Garage (SUMPEA)
A18: Mahoning County (Canfield) County Garage (MAHCG) | B18: 9
A19: Millersburg Rd. Outpost Yard (STAPWE)
A20: N. Lima Outpost (MAHPSE) | B20: 8
A21: Portage County / Rootstown County Garage (PORCG) | B21: 11
A22: Rome Outpost Garage (ATBPSW) | B22: 4
A23: Sebring Outpost Garage (MAHPWE) | B23: 2
A24: South Avenue Outpost Yard (MAHPNE)
A25: Stark County Garage (STACG) | B25: 17
A26: Summit (Boston Heights) County Garage (SUMCG) | B26: 10
A27: Trumbull (Cortland) County Garage (TRUCG) | B27: 8
A28: Trumbull Construction Office (TRUCON)
A29: Twinsburg Outpost Garage (SUMPNE) | B29: 5
A30: Warren Outpost Yard (TRUPSW) | B30: 5
A31: West Farmington Outpost Garage (TRUPEA) | B31: 4
A32: Williamsfield Outpost Garage (ATBPSE) | B32: 4
A33: Yale Outpost Garage (PORPSE) | B33: 4
A34: Grand Total | B34: 145

Sheet Events (hidden)
A1: District | B1: 4
A3: Row Labels | B3: Sum of Three Year Avg Events
A4: Alliance Outpost Yard (STAPNE) | B4: 44.66666667
A5: Ashtabula County Garage (ATBCG) | B5: 63.66666667
A6: Bailey Road Outpost Garage (MAHPNW) | B6: 47.33333333
A7: Brookfield Outpost Garage (TRUPSE) | B7: 48.66666667
A8: Canal Fulton Outpost Yard (STAPNW) | B8: 44.66666667
A9: Conneaut Outpost Garage (ATBPNE) | B9: 63.66666667
A10: District Four Headquarters (SUMHQ) | B10: 52
A11: Dorset Outpost Garage (ATBPCT) | B11: 63.66666667
A12: Drakesburg Outpost Garage (PORPNE) | B12: 47.66666667
A13: Greensburg Airport Outpost Garage (SUMPSE) | B13: 52
A14: Gustavus Outpost Garage (TRUPNO) | B14: 48.66666667
A15: Harperfield Outpost Garage (ATBPNW) | B15: 63.66666667
A16: Interchange / Norton Outpost Garage (SUMPWE) | B16: 52
A17: Kelly Avenue Outpost Garage (SUMPEA) | B17: 52
A18: Mahoning County (Canfield) County Garage (MAHCG) | B18: 47.33333333
A19: Millersburg Rd. Outpost Yard (STAPWE) | B19: 44.66666667
A20: N. Lima Outpost (MAHPSE) | B20: 47.33333333
A21: Portage County / Rootstown County Garage (PORCG) | B21: 47.66666667
A22: Rome Outpost Garage (ATBPSW) | B22: 63.66666667
A23: Sebring Outpost Garage (MAHPWE) | B23: 47.33333333
A24: South Avenue Outpost Yard (MAHPNE) | B24: 47.33333333
A25: Stark County Garage (STACG) | B25: 44.66666667
A26: Summit (Boston Heights) County Garage (SUMCG) | B26: 52
A27: Trumbull (Cortland) County Garage (TRUCG) | B27: 48.66666667
A28: Trumbull Construction Office (TRUCON) | B28: 48.66666667
A29: Twinsburg Outpost Garage (SUMPNE) | B29: 52
A30: Warren Outpost Yard (TRUPSW) | B30: 48.66666667
A31: West Farmington Outpost Garage (TRUPEA) | B31: 48.66666667
A32: Williamsfield Outpost Garage (ATBPSE) | B32: 63.66666667
A33: Yale Outpost Garage (PORPSE) | B33: 47.66666667
A34: Grand Total | B34: 1544.333333

Sheet Cost
B2: User Input | F2: Cost Summary | H2: Output
B4: Volume | H4: Volume
B5: Volume/Truck/Event | C5: 330 | D5: gallons | H5: Est. Annual WW Volume | I5: =IF(AND(ISNUMBER(C5),ISNUMBER(C6),ISNUMBER(C7)),C5*C6*C7*1.1, "") -> 130680
B6: Annual Number of Events | C6: 30 | D6: events
B7: Number of Trucks | C7: 12 | D7: trucks | H7: Management Option Costs and Savings
I8: Annual Cost | J8: Annual Savings | K8: Project Savings
B9: Planning | H9: Sewer Tie In | I9: =IF(AND(C15<>"", C15<>0,C10<>"",C10<>0,C11<>"",C11<>0,C10<1,I5<>"",I5<>0),(C15*(C10/(((1+C10)^C11)-1)+C10))+(I5*0.01),0) -> 23809.54166
B10: Interest Rate | C10: 0.07 | H10: Commercial Disposal | I10: =IF(AND(C12<>"",C10<>"",C10<1,C20<>"",I5<>"",I5<>0),(C18*(C10/(((1+C10)^C12)-1)+C10))+((I5*C20)+C23), 0) -> 44366.05966 | J10: =$I$9-I10 -> -20556.518 | K10: =J10*$C$12 -> -246678.216
B11: Planning Period Sewer | C11: 40 | D11: years | H11: Disposal at WWTP | I11: =IF(AND(C10<>"",C10<1, C12<>"",C19<>"",C21<>"",C24<>"",I5<>"",I5<>0,C21<>0),(C18*(C10/(((1+C10)^C12)-1)+C10))+((I5*C19)+(C23)+((I5/C24)*((((C21/45)+1)*C25)+(C26*C21)))),"") -> 19547.02366 | J11: =$I$9-I11 -> 4262.518002 | K11: =J11*$C$12 -> 51150.21603
B12: Planning Period (Holding Tank/Filtration) | C12: 12 | D12: years | H12: Disposal at County Garage | I12: =IF(AND(C10<>"",C10<1,C12<>"",C22<>"",C24<>"",I5<>"",I5<>0,C22<>0),(C18*(C10/(((1+C10)^C12)-1)+C10))+((I5*0.01)+(C23)+((I5/C24)*((((C22/45)+1)*C25)+(C26*C22)))),"") -> 14319.82366 | J12: =$I$9-I12 -> 9489.718002 | K12: 113876.616
H13: Filtration and Disposal | I13: =IF(AND(C10<>"",C10<1,C12<>"",C22<>"",C24<>"",I5<>"",I5<>0,C22<>0),((C18+C29)*(C10/(((1+C10)^C12)-1)+C10))+((I5*0.01)+C23+C30+(((I5/C24)*((((C22/45)+1)*C25)+(C26*C22))))),IF(C22=0, ((C18+C29)*(C10/(((1+C10)^C12)-1)+C10))+((I5*0.01)+C23+C30),"")) -> 22696.88332 | J13: =$I$9-I13 -> 1112.658343 | K13: 13351.90011
B14: Sanitary Sewer Costs | H14: Filtration and Reuse | I14: =IF(AND(C10<>"",C10<1,C12<>"",C22<>"",C24<>"",I5<>"",I5<>0, C22<>0),((C18+C29)*(C10/(((1+C10)^C12)-1)+C10))+(C23+C30+(((I5/C24)*((((C22/45)+1)*C25)+(C26*C22))))),IF(C22=0,(((C18+C29)*(C10/(((1+C10)^C12)-1)+C10))+(C23+C30)),"")) -> 21390.08332 | J14: =$I$9-I14 -> 2419.458343 | K14: 29033.50011
B15: Capital Cost of Sewer Tie In | C15: 300000 | D15: dollars
B17: Other | H17: Notes:
B18: Capital cost of holding tank system | C18: 30000 | D18: dollars | H18: Volume/truck/event is estimated volume of wash water generated
B19: Disposal Rate WWTP | C19: 0.05 | D19: $/gallon | H19: Planning period refers to the expected life of the option (sewer/non-sewer)
B20: Commercial disposal rate | C20: 0.3 | D20: $/gallon | H20: Loaded labor rate=hourly rate * 1.5 to account for benefits
B21: Rountrip Distance to WWTP | C21: 55 | D21: miles | H21: Vehicle operation = fuel cost/7mpg + .53 in other operating costs
B22: Roundtrip Distance to nearest county garage | C22: 55 | D22: miles | H22: Project savings is the savings over the planning period of the non-sewer options
B23: Annual Monitoring Costs | C23: 1385 | D23: dollars
B24: Tanker Truck Volume | C24: 2000 | D24: gallons
B25: Loaded Labor Rate | C25: 26.35 | D25: $/hour
B26: Unit Cost to Operate Vehicle | C26: 1.12 | D26: $/mile
B28: Filtration
B29: Capital cost of filtration unit | C29: 30000 | D29: dollars
B30: Annual media replacement cost | C30: 4600 | D30: $/year

Sheet DataSummary
B15: Vol/Truck/Event | C15: 330 | D15: gallons
B19: Percent of Events | C19: 100 | D19: % events

Sheet DistrictSummaryData (hidden)
A3: Location | B3: Trucks | C3: Avg No. Events
A4: Alliance Outpost Yard (STAPNE) | C4: 44.66666667
A5: Ashtabula County Garage (ATBCG) | B5: 9 | C5: 63.66666667
A6: Bailey Road Outpost Garage (MAHPNW) | B6: 4 | C6: 47.33333333
A7: Brookfield Outpost Garage (TRUPSE) | B7: 7 | C7: 48.66666667
A8: Canal Fulton Outpost Yard (STAPNW) | C8: 44.66666667
A9: Conneaut Outpost Garage (ATBPNE) | B9: 5 | C9: 63.66666667
A10: District Four Headquarters (SUMHQ) | C10: 52
A11: Dorset Outpost Garage (ATBPCT) | B11: 4 | C11: 63.66666667
A12: Drakesburg Outpost Garage (PORPNE) | B12: 5 | C12: 47.66666667
A13: Greensburg Airport Outpost Garage (SUMPSE) | B13: 4 | C13: 52
A14: Gustavus Outpost Garage (TRUPNO) | B14: 6 | C14: 48.66666667
A15: Harperfield Outpost Garage (ATBPNW) | B15: 3 | C15: 63.66666667
A16: Interchange / Norton Outpost Garage (SUMPWE) | B16: 7 | C16: 52
A17: Kelly Avenue Outpost Garage (SUMPEA) | C17: 52
A18: Mahoning County (Canfield) County Garage (MAHCG) | B18: 9 | C18: 47.33333333
A19: Millersburg Rd. Outpost Yard (STAPWE) | C19: 44.66666667
A20: N. Lima Outpost (MAHPSE) | B20: 8 | C20: 47.33333333
A21: Portage County / Rootstown County Garage (PORCG) | B21: 11 | C21: 47.66666667
A22: Rome Outpost Garage (ATBPSW) | B22: 4 | C22: 63.66666667
A23: Sebring Outpost Garage (MAHPWE) | B23: 2 | C23: 47.33333333
A24: South Avenue Outpost Yard (MAHPNE) | C24: 47.33333333
A25: Stark County Garage (STACG) | B25: 17 | C25: 44.66666667
A26: Summit (Boston Heights) County Garage (SUMCG) | B26: 10 | C26: 52
A27: Trumbull (Cortland) County Garage (TRUCG) | B27: 8 | C27: 48.66666667
A28: Trumbull Construction Office (TRUCON) | C28: 48.66666667
A29: Twinsburg Outpost Garage (SUMPNE) | B29: 5 | C29: 52
A30: Warren Outpost Yard (TRUPSW) | B30: 5 | C30: 48.66666667
A31: West Farmington Outpost Garage (TRUPEA) | B31: 4 | C31: 48.66666667
A32: Williamsfield Outpost Garage (ATBPSE) | B32: 4 | C32: 63.66666667
A33: Yale Outpost Garage (PORPSE) | B33: 4 | C33: 47.66666667
